Workbook

Sheet metadata

Sheet 4.WeeklyTaskPlan_example
A1: Weekly TaskPlan
C2: Date --> | D2: 2026-02-02 | E2: =D2+1 -> 2026-02-03 | F2: 2026-02-04 | G2: 2026-02-05 | H2: 2026-02-06 | I2: 2026-02-07 | J2: 2026-02-08
A3: Project | B3: # | C3: Current Tasks & Steps | D3: Monday | E3: Tuesday | F3: Wednesday | G3: Thursday | H3: Friday | I3: Saturday | J3: Sunday
A4: ='3.GanttChart_example'!D12 -> 00.TimeOff | C4: ='3.GanttChart_example'!G12 -> ----------------------------- | D4: Tasks Hours | E4: Tasks Hours | F4: Tasks Hours | G4: Tasks Hours | H4: Tasks Hours | I4: Tasks Hours | J4: Tasks Hours
A5: ='3.GanttChart_example'!D13 -> 00.TimeOff | C5: ='3.GanttChart_example'!G13 -> Vacation | D5: ) | E5: ) | F5: ) | G5: ) | H5: ) | I5: ) Admin | J5: ) Admin
A6: ='3.GanttChart_example'!D14 -> 00.TimeOff | C6: ='3.GanttChart_example'!G14 -> Sick Days
A7: ='3.GanttChart_example'!D15 -> 00.TimeOff | C7: ='3.GanttChart_example'!G15 -> Holidays | D7: ) | E7: ) | F7: ) | G7: ) | H7: ) | I7: ) | J7: )
A8: ='3.GanttChart_example'!D16 -> 01.projectName1 | C8: ='3.GanttChart_example'!G16 -> -----------------------------
A9: ='3.GanttChart_example'!D17 -> 01.projectName1 | C9: ='3.GanttChart_example'!G17 -> Admin/meetings/email | D9: ) | E9: ) | F9: ) | G9: ) | H9: ) | I9: ) | J9: )
A10: ='3.GanttChart_example'!D18 -> 01.projectName1 | C10: ='3.GanttChart_example'!G18 -> Annual budget – this year
A11: ='3.GanttChart_example'!D19 -> 01.projectName1 | C11: ='3.GanttChart_example'!G19 -> dataAnalysis tasks 1, 2, etc. | D11: ) | E11: ) | F11: ) | G11: ) | H11: ) | I11: ) | J11: )
A12: ='3.GanttChart_example'!D20 -> 01.projectName1 | C12: ='3.GanttChart_example'!G20 -> reporting tasks 1, 2, etc.
A13: ='3.GanttChart_example'!D21 -> 02.projectName2 | C13: ='3.GanttChart_example'!G21 -> ----------------------------- | D13: ) | E13: ) | F13: ) | G13: ) | H13: ) | I13: ) | J13: )
A14: ='3.GanttChart_example'!D22 -> 02.projectName2 | C14: ='3.GanttChart_example'!G22 -> Meetings/email
A15: ='3.GanttChart_example'!D23 -> 02.projectName2 | C15: ='3.GanttChart_example'!G23 -> dataCollection task 1 | D15: ) | E15: ) | F15: ) | G15: ) | H15: ) | I15: ) | J15: )
A16: ='3.GanttChart_example'!D24 -> ---------- | C16: ='3.GanttChart_example'!G24 -> -----------------------------
A17: ='3.GanttChart_example'!D25 -> GC1_project1 | C17: ='3.GanttChart_example'!G25 -> Meetings/email | D17: ) | E17: ) | F17: ) | G17: ) | H17: ) | I17: ) | J17: )
A18: ='3.GanttChart_example'!D26 -> GC2_project1 | C18: ='3.GanttChart_example'!G26 -> Volunteer
A19: ='3.GanttChart_example'!D27 -> ---------- | C19: ='3.GanttChart_example'!G27 -> ----------------------------- | D19: ) | E19: ) | F19: ) | G19: ) | H19: ) | I19: ) | J19: )
A20: ='3.GanttChart_example'!D28 -> 1.HomeOffice | C20: ='3.GanttChart_example'!G28 -> Assemble documents to file income tax
A21: ='3.GanttChart_example'!D29 -> 2.PrimaryHome | C21: ='3.GanttChart_example'!G29 -> Choose design | D21: ) | E21: ) | F21: ) | G21: ) | H21: ) | I21: ) | J21: )
A22: ='3.GanttChart_example'!D30 -> 3.VacationHome | C22: ='3.GanttChart_example'!G30 -> Blinds: purchase & install
A23: ='3.GanttChart_example'!D31 -> ---------- | C23: ='3.GanttChart_example'!G31 -> ----------------------------- | D23: ) | E23: ) | F23: ) | G23: ) | H23: ) | I23: ) | J23: )
A24: ='3.GanttChart_example'!D32 -> Cardio | C24: ='3.GanttChart_example'!G32 -> Develop running routes and plan
A25: ='3.GanttChart_example'!D33 -> Sailing | C25: ='3.GanttChart_example'!G33 -> Buy new batteries / build battery shelf | D25: ) | E25: ) | F25: ) | G25: ) | H25: ) | I25: Weekend Home Tasks / Activities
I26: ) Cleaning:
D27: ) | E27: ) | F27: ) | G27: ) | H27: ) | I27: ) | J27: )
I28: )
D29: ) | E29: ) | F29: ) | G29: ) | H29: ) | I29: ) | J29: )
D31: ) | E31: ) | F31: ) | G31: ) | H31: ) | I31: ) | J31: )
D33: ) | E33: ) | F33: ) | G33: ) | H33: ) | I33: ) | J33: )
D35: ) | E35: ) | F35: ) | G35: ) | H35: ) | I35: ) | J35: )
D37: ) | E37: ) | F37: ) | G37: ) | H37: ) | I37: ) | J37: )
D39: ) | E39: ) | F39: ) | G39: ) | H39: ) | I39: ) | J39: )
D41: ) | E41: ) | F41: ) | G41: ) | H41: ) | I41: ) | J41: )
D44: Morning: | E44: Morning: | F44: Morning: | G44: Morning: | H44: Morning: | I44: Morning: Ex.core | J44: Morning: Ex.core
D45: 0700: | E45: 0700: | F45: 0700: | G45: 0700: | H45: 0700: | I45: 0700: | J45: 0700:
D46: 30: | E46: 30: | F46: 30: | G46: 30: | H46: 30: | I46: 30: | J46: 30:
A47: Misc. to get: | C47: Misc. to do: | D47: 0800: | E47: 0800: | F47: 0800: | G47: 0800: | H47: 0800: | I47: 0800: | J47: 0800:
A48: buy this | C48: Miscellaneous stuff to do, or details | D48: 30: | E48: 30: | F48: 30: | G48: 30: | H48: 30: | I48: 30: | J48: 30:
A49: buy that | C49: that didn’t quite fit into the list of | D49: 0900: | E49: 0900: | F49: 0900: | G49: 0900: | H49: 0900: | I49: 0900: Weekly sum & plan | J49: 0900:
A50: etc. | C50: actions above. | D50: 30: | E50: 30: | F50: 30: | G50: 30: | H50: 30: | I50: 30: | J50: 30:
D51: 1000: | E51: 1000: | F51: 1000: | G51: 1000: | H51: 1000: | I51: 1000: | J51: 1000:
D52: 30: | E52: 30: | F52: 30: | G52: 30: | H52: 30: | I52: 30: | J52: 30:
D53: 1100: | E53: 1100: | F53: 1100: | G53: 1100: | H53: 1100: | I53: 1100: | J53: 1100:
D54: 30: | E54: 30: | F54: 30: | G54: 30: | H54: 30: | I54: 30: | J54: 30:
D55: 1200: | E55: 1200: | F55: 1200: | G55: 1200: | H55: 1200: | I55: 1200: | J55: 1200:
D56: 30: | E56: 30: | F56: 30: | G56: 30: | H56: 30: | I56: 30: | J56: 30:
D57: 1300: | E57: 1300: | F57: 1300: | G57: 1300: | H57: 1300: | I57: 1300: | J57: 1300:
D58: 30: | E58: 30: | F58: 30: | G58: 30: | H58: 30: | I58: 30: | J58: 30:
D59: 1400: | E59: 1400: | F59: 1400: | G59: 1400: | H59: 1400: | I59: 1400: | J59: 1400:
D60: 30: | E60: 30: | F60: 30: | G60: 30: | H60: 30: | I60: 30: | J60: 30:
D61: 1500: | E61: 1500: | F61: 1500: | G61: 1500: | H61: 1500: | I61: 1500: | J61: 1500:
D62: 30: | E62: 30: | F62: 30: | G62: 30: | H62: 30: | I62: 30: | J62: 30:
D63: 1600: | E63: 1600: | F63: 1600: | G63: 1600: | H63: 1600: | I63: 1600: | J63: 1600:
D64: 30: | E64: 30: | F64: 30: | G64: 30: | H64: 30: | I64: 30: | J64: 30:
D65: 1700: | E65: 1700: | F65: 1700: | G65: 1700: | H65: 1700: | I65: 1700: | J65: 1700:
D66: 30: | E66: 30: | F66: 30: | G66: 30: | H66: 30: | I66: 30: | J66: 30:
D67: 1800: | E67: 1800: | F67: 1800: | G67: 1800: | H67: 1800: | I67: 1800: | J67: 1800:
C68: Formats to copy for emphasis: | D68: 30: | E68: 30: | F68: 30: | G68: 30: | H68: 30: | I68: 30: | J68: 30:
C69: Meeting scheduled | D69: 1900: | E69: 1900: | F69: 1900: | G69: 1900: | H69: 1900: | I69: 1900: | J69: 1900:
C70: Top priority | D70: 30: | E70: 30: | F70: 30: | G70: 30: | H70: 30: | I70: 30: | J70: 30:
C71: Secondary priority | D71: Evening: | E71: Evening: | F71: Evening: | G71: Evening: | H71: Evening: | I71: Evening: | J71: Evening:
C74: Habit Tracker: Sleep
C75: Focus
C76: Exercise
C77: Music
C78: Language
C79: Diet

Sheet 3.GanttChart_example
A1: PROJECT PLANNER | E1: ="CY "&M7 -> CY 2021 | H1: Put nothing in grey rows, to preserve sorting | M1: Symbols to enter for Gantt planning, only if you want; replace with actual hours spent
A2: (your name here) | M2: • | N2: Plans
M3: MS | N3: Milestone in work plan
A4: Priority / Currency of task | M4: DL | N4: Deadlines/Absolutes
A5: A | B5: Active; current | D5: (AA = current but not this week)
A6: LA | B6: Low activity &/or persistent
A7: NA | B7: Not active | H7: Hours of time for task | M7: 2021 | O7: Calendar Year
A8: X | B8: Done | H8: Estimated | I8: Spent | J8: Remaining | M8: January | AR8: February | BT8: March | CY8: April | EC8: May | FH8: June | GL8: July | HQ8: August | IV8: September | JZ8: October | LE8: November | MI8: December | NO8: |
G9: For sorting purposes, leave line blank above column IDs | H9: Hours | I9: Hours | J9: Hours | K9: Finished | M9: F | N9: S | O9: S | P9: M | Q9: T | R9: W | S9: Th | T9: =M9 -> F | U9: S | V9: S | W9: M | X9: T | Y9: W | Z9: Th | AA9: F | AB9: S | AC9: S | AD9: M | AE9: T | AF9: W | AG9: Th | AH9: F | AI9: S | AJ9: S | AK9: M | AL9: T | AM9: W | AN9: Th | AO9: F | AP9: S | AQ9: S | AR9: M | AS9: T | AT9: W | AU9: Th | AV9: F | AW9: S | AX9: S | AY9: M | AZ9: T | BA9: W | BB9: Th | BC9: F | BD9: S | BE9: S | BF9: M | BG9: T | BH9: W | BI9: Th | BJ9: F | BK9: S | BL9: S | BM9: M | BN9: T | BO9: W | BP9: Th | BQ9: F | BR9: S | BS9: S | BT9: M | BU9: T | BV9: W | BW9: Th | BX9: F | BY9: S | BZ9: S | CA9: M | CB9: T | CC9: W | CD9: Th | CE9: F | CF9: =BY9 -> S | CG9: S | CH9: M | CI9: T | CJ9: W | CK9: Th | CL9: F | CM9: S | CN9: S | CO9: M | CP9: T | CQ9: W | CR9: Th | CS9: F | CT9: S | CU9: S | CV9: M | CW9: T | CX9: W | CY9: Th | CZ9: F | DA9: S | DB9: S | DC9: M | DD9: T | DE9: W | DF9: Th | DG9: F | DH9: S | DI9: S | DJ9: M | DK9: T | DL9: W | DM9: Th | DN9: F | DO9: S | DP9: S | DQ9: M | DR9: T | DS9: W | DT9: Th | DU9: F | DV9: S | DW9: S | DX9: M | DY9: T | DZ9: W | EA9: Th | EB9: F | EC9: S | ED9: S | EE9: M | EF9: T | EG9: W | EH9: Th | EI9: F | EJ9: S | EK9: S | EL9: M | EM9: T | EN9: W | EO9: Th | EP9: F | EQ9: S | ER9: =EK9 -> S | ES9: M | ET9: T | EU9: W | EV9: Th | EW9: F | EX9: S | EY9: S | EZ9: M | FA9: T | FB9: W | FC9: Th | FD9: F | FE9: S | FF9: S | FG9: M | FH9: T | FI9: W | FJ9: Th | FK9: F | FL9: S | FM9: S | FN9: M | FO9: T | FP9: W | FQ9: Th | FR9: F | FS9: S | FT9: S | FU9: M | FV9: T | FW9: W | FX9: Th | FY9: F | FZ9: S | GA9: S | GB9: M | GC9: T | GD9: W | GE9: Th | GF9: F | GG9: S | GH9: S | GI9: M | GJ9: T | GK9: W | GL9: Th | GM9: F | GN9: S | GO9: S | GP9: M | GQ9: T | GR9: W | GS9: Th | GT9: F | GU9: S | GV9: S | GW9: M | GX9: T | GY9: W | GZ9: Th | HA9: F | HB9: S | HC9: S | HD9: =GW9 -> M | HE9: T | HF9: W | HG9: Th | HH9: F | HI9: S | HJ9: S | HK9: M | HL9: T | HM9: W | HN9: Th | HO9: F | HP9: S | HQ9: S | HR9: M | HS9: T | HT9: W | HU9: Th | HV9: F | HW9: S | HX9: S | HY9: M | HZ9: T | IA9: W | IB9: Th | IC9: F | ID9: S | IE9: S | IF9: M | IG9: T | IH9: W | II9: Th | IJ9: F | IK9: S | IL9: S | IM9: M | IN9: T | IO9: W | IP9: Th | IQ9: F | IR9: S | IS9: S | IT9: M | IU9: T | IV9: W | IW9: Th | IX9: F | IY9: S | IZ9: S | JA9: M | JB9: T | JC9: W | JD9: Th | JE9: F | JF9: S | JG9: S | JH9: M | JI9: T | JJ9: W | JK9: Th | JL9: F | JM9: S | JN9: S | JO9: M | JP9: =JI9 -> T | JQ9: W | JR9: Th | JS9: F | JT9: S | JU9: S | JV9: M | JW9: T | JX9: W | JY9: Th | JZ9: F | KA9: S | KB9: S | KC9: M | KD9: T | KE9: W | KF9: Th | KG9: F | KH9: S | KI9: S | KJ9: M | KK9: T | KL9: W | KM9: Th | KN9: F | KO9: S | KP9: S | KQ9: M | KR9: T | KS9: W | KT9: Th | KU9: F | KV9: S | KW9: S | KX9: M | KY9: T | KZ9: W | LA9: Th | LB9: F | LC9: S | LD9: S | LE9: M | LF9: T | LG9: W | LH9: Th | LI9: F | LJ9: S | LK9: S | LL9: M | LM9: T | LN9: W | LO9: Th | LP9: F | LQ9: S | LR9: S | LS9: M | LT9: T | LU9: W | LV9: Th | LW9: F | LX9: S | LY9: S | LZ9: M | MA9: T | MB9: =LU9 -> W | MC9: Th | MD9: F | ME9: S | MF9: S | MG9: M | MH9: T | MI9: W | MJ9: Th | MK9: F | ML9: S | MM9: S | MN9: M | MO9: T | MP9: W | MQ9: Th | MR9: F | MS9: S | MT9: S | MU9: M | MV9: T | MW9: W | MX9: Th | MY9: F | MZ9: S | NA9: S | NB9: M | NC9: T | ND9: W | NE9: Th | NF9: F | NG9: S | NH9: S | NI9: M | NJ9: T | NK9: W | NL9: Th | NM9: F | NN9: S | NO9: |
A11: Priority | B11: Level 1 | C11: Level 2 | D11: Project | E11: SubProject | F11: Key Result | G11: Task & Step | H11: Est | I11: Act | J11: Rem | K11: Date | L11: Notes/Impact | M11: =DATE(M7,1,1) -> 2021-01-01 | N11: =M11+1 -> 2021-01-02 | O11: 2021-01-03 | P11: 2021-01-04 | Q11: 2021-01-05 | R11: 2021-01-06 | S11: 2021-01-07 | T11: 2021-01-08 | U11: 2021-01-09 | V11: 2021-01-10 | W11: 2021-01-11 | X11: 2021-01-12 | Y11: 2021-01-13 | Z11: 2021-01-14 | AA11: 2021-01-15 | AB11: 2021-01-16 | AC11: 2021-01-17 | AD11: 2021-01-18 | AE11: 2021-01-19 | AF11: 2021-01-20 | AG11: 2021-01-21 | AH11: 2021-01-22 | AI11: 2021-01-23 | AJ11: 2021-01-24 | AK11: 2021-01-25 | AL11: 2021-01-26 | AM11: 2021-01-27 | AN11: 2021-01-28 | AO11: 2021-01-29 | AP11: 2021-01-30 | AQ11: 2021-01-31 | AR11: 2021-02-01 | AS11: 2021-02-02 | AT11: 2021-02-03 | AU11: 2021-02-04 | AV11: 2021-02-05 | AW11: 2021-02-06 | AX11: 2021-02-07 | AY11: 2021-02-08 | AZ11: 2021-02-09 | BA11: 2021-02-10 | BB11: 2021-02-11 | BC11: 2021-02-12 | BD11: 2021-02-13 | BE11: 2021-02-14 | BF11: 2021-02-15 | BG11: 2021-02-16 | BH11: 2021-02-17 | BI11: 2021-02-18 | BJ11: 2021-02-19 | BK11: 2021-02-20 | BL11: 2021-02-21 | BM11: 2021-02-22 | BN11: 2021-02-23 | BO11: 2021-02-24 | BP11: 2021-02-25 | BQ11: 2021-02-26 | BR11: 2021-02-27 | BS11: 2021-02-28 | BT11: 2021-03-01 | BU11: 2021-03-02 | BV11: 2021-03-03 | BW11: 2021-03-04 | BX11: 2021-03-05 | BY11: 2021-03-06 | BZ11: =BY11+1 -> 2021-03-07 | CA11: 2021-03-08 | CB11: 2021-03-09 | CC11: 2021-03-10 | CD11: 2021-03-11 | CE11: 2021-03-12 | CF11: 2021-03-13 | CG11: 2021-03-14 | CH11: 2021-03-15 | CI11: 2021-03-16 | CJ11: 2021-03-17 | CK11: 2021-03-18 | CL11: 2021-03-19 | CM11: 2021-03-20 | CN11: 2021-03-21 | CO11: 2021-03-22 | CP11: 2021-03-23 | CQ11: 2021-03-24 | CR11: 2021-03-25 | CS11: 2021-03-26 | CT11: 2021-03-27 | CU11: 2021-03-28 | CV11: 2021-03-29 | CW11: 2021-03-30 | CX11: 2021-03-31 | CY11: 2021-04-01 | CZ11: 2021-04-02 | DA11: 2021-04-03 | DB11: 2021-04-04 | DC11: 2021-04-05 | DD11: 2021-04-06 | DE11: 2021-04-07 | DF11: 2021-04-08 | DG11: 2021-04-09 | DH11: 2021-04-10 | DI11: 2021-04-11 | DJ11: 2021-04-12 | DK11: 2021-04-13 | DL11: 2021-04-14 | DM11: 2021-04-15 | DN11: 2021-04-16 | DO11: 2021-04-17 | DP11: 2021-04-18 | DQ11: 2021-04-19 | DR11: 2021-04-20 | DS11: 2021-04-21 | DT11: 2021-04-22 | DU11: 2021-04-23 | DV11: 2021-04-24 | DW11: 2021-04-25 | DX11: 2021-04-26 | DY11: 2021-04-27 | DZ11: 2021-04-28 | EA11: 2021-04-29 | EB11: 2021-04-30 | EC11: 2021-05-01 | ED11: 2021-05-02 | EE11: 2021-05-03 | EF11: 2021-05-04 | EG11: 2021-05-05 | EH11: 2021-05-06 | EI11: 2021-05-07 | EJ11: 2021-05-08 | EK11: 2021-05-09 | EL11: =EK11+1 -> 2021-05-10 | EM11: 2021-05-11 | EN11: 2021-05-12 | EO11: 2021-05-13 | EP11: 2021-05-14 | EQ11: 2021-05-15 | ER11: 2021-05-16 | ES11: 2021-05-17 | ET11: 2021-05-18 | EU11: 2021-05-19 | EV11: 2021-05-20 | EW11: 2021-05-21 | EX11: 2021-05-22 | EY11: 2021-05-23 | EZ11: 2021-05-24 | FA11: 2021-05-25 | FB11: 2021-05-26 | FC11: 2021-05-27 | FD11: 2021-05-28 | FE11: 2021-05-29 | FF11: 2021-05-30 | FG11: 2021-05-31 | FH11: 2021-06-01 | FI11: 2021-06-02 | FJ11: 2021-06-03 | FK11: 2021-06-04 | FL11: 2021-06-05 | FM11: 2021-06-06 | FN11: 2021-06-07 | FO11: 2021-06-08 | FP11: 2021-06-09 | FQ11: 2021-06-10 | FR11: 2021-06-11 | FS11: 2021-06-12 | FT11: 2021-06-13 | FU11: 2021-06-14 | FV11: 2021-06-15 | FW11: 2021-06-16 | FX11: 2021-06-17 | FY11: 2021-06-18 | FZ11: 2021-06-19 | GA11: 2021-06-20 | GB11: 2021-06-21 | GC11: 2021-06-22 | GD11: 2021-06-23 | GE11: 2021-06-24 | GF11: 2021-06-25 | GG11: 2021-06-26 | GH11: 2021-06-27 | GI11: 2021-06-28 | GJ11: 2021-06-29 | GK11: 2021-06-30 | GL11: 2021-07-01 | GM11: 2021-07-02 | GN11: 2021-07-03 | GO11: 2021-07-04 | GP11: 2021-07-05 | GQ11: 2021-07-06 | GR11: 2021-07-07 | GS11: 2021-07-08 | GT11: 2021-07-09 | GU11: 2021-07-10 | GV11: 2021-07-11 | GW11: 2021-07-12 | GX11: =GW11+1 -> 2021-07-13 | GY11: 2021-07-14 | GZ11: 2021-07-15 | HA11: 2021-07-16 | HB11: 2021-07-17 | HC11: 2021-07-18 | HD11: 2021-07-19 | HE11: 2021-07-20 | HF11: 2021-07-21 | HG11: 2021-07-22 | HH11: 2021-07-23 | HI11: 2021-07-24 | HJ11: 2021-07-25 | HK11: 2021-07-26 | HL11: 2021-07-27 | HM11: 2021-07-28 | HN11: 2021-07-29 | HO11: 2021-07-30 | HP11: 2021-07-31 | HQ11: 2021-08-01 | HR11: 2021-08-02 | HS11: 2021-08-03 | HT11: 2021-08-04 | HU11: 2021-08-05 | HV11: 2021-08-06 | HW11: 2021-08-07 | HX11: 2021-08-08 | HY11: 2021-08-09 | HZ11: 2021-08-10 | IA11: 2021-08-11 | IB11: 2021-08-12 | IC11: 2021-08-13 | ID11: 2021-08-14 | IE11: 2021-08-15 | IF11: 2021-08-16 | IG11: 2021-08-17 | IH11: 2021-08-18 | II11: 2021-08-19 | IJ11: 2021-08-20 | IK11: 2021-08-21 | IL11: 2021-08-22 | IM11: 2021-08-23 | IN11: 2021-08-24 | IO11: 2021-08-25 | IP11: 2021-08-26 | IQ11: 2021-08-27 | IR11: 2021-08-28 | IS11: 2021-08-29 | IT11: 2021-08-30 | IU11: 2021-08-31 | IV11: 2021-09-01 | IW11: 2021-09-02 | IX11: 2021-09-03 | IY11: 2021-09-04 | IZ11: 2021-09-05 | JA11: 2021-09-06 | JB11: 2021-09-07 | JC11: 2021-09-08 | JD11: 2021-09-09 | JE11: 2021-09-10 | JF11: 2021-09-11 | JG11: 2021-09-12 | JH11: 2021-09-13 | JI11: 2021-09-14 | JJ11: =JI11+1 -> 2021-09-15 | JK11: 2021-09-16 | JL11: 2021-09-17 | JM11: 2021-09-18 | JN11: 2021-09-19 | JO11: 2021-09-20 | JP11: 2021-09-21 | JQ11: 2021-09-22 | JR11: 2021-09-23 | JS11: 2021-09-24 | JT11: 2021-09-25 | JU11: 2021-09-26 | JV11: 2021-09-27 | JW11: 2021-09-28 | JX11: 2021-09-29 | JY11: 2021-09-30 | JZ11: 2021-10-01 | KA11: 2021-10-02 | KB11: 2021-10-03 | KC11: 2021-10-04 | KD11: 2021-10-05 | KE11: 2021-10-06 | KF11: 2021-10-07 | KG11: 2021-10-08 | KH11: 2021-10-09 | KI11: 2021-10-10 | KJ11: 2021-10-11 | KK11: 2021-10-12 | KL11: 2021-10-13 | KM11: 2021-10-14 | KN11: 2021-10-15 | KO11: 2021-10-16 | KP11: 2021-10-17 | KQ11: 2021-10-18 | KR11: 2021-10-19 | KS11: 2021-10-20 | KT11: 2021-10-21 | KU11: 2021-10-22 | KV11: 2021-10-23 | KW11: 2021-10-24 | KX11: 2021-10-25 | KY11: 2021-10-26 | KZ11: 2021-10-27 | LA11: 2021-10-28 | LB11: 2021-10-29 | LC11: 2021-10-30 | LD11: 2021-10-31 | LE11: 2021-11-01 | LF11: 2021-11-02 | LG11: 2021-11-03 | LH11: 2021-11-04 | LI11: 2021-11-05 | LJ11: 2021-11-06 | LK11: 2021-11-07 | LL11: 2021-11-08 | LM11: 2021-11-09 | LN11: 2021-11-10 | LO11: 2021-11-11 | LP11: 2021-11-12 | LQ11: 2021-11-13 | LR11: 2021-11-14 | LS11: 2021-11-15 | LT11: 2021-11-16 | LU11: 2021-11-17 | LV11: =LU11+1 -> 2021-11-18 | LW11: 2021-11-19 | LX11: 2021-11-20 | LY11: 2021-11-21 | LZ11: 2021-11-22 | MA11: 2021-11-23 | MB11: 2021-11-24 | MC11: 2021-11-25 | MD11: 2021-11-26 | ME11: 2021-11-27 | MF11: 2021-11-28 | MG11: 2021-11-29 | MH11: 2021-11-30 | MI11: 2021-12-01 | MJ11: 2021-12-02 | MK11: 2021-12-03 | ML11: 2021-12-04 | MM11: 2021-12-05 | MN11: 2021-12-06 | MO11: 2021-12-07 | MP11: 2021-12-08 | MQ11: 2021-12-09 | MR11: 2021-12-10 | MS11: 2021-12-11 | MT11: 2021-12-12 | MU11: 2021-12-13 | MV11: 2021-12-14 | MW11: 2021-12-15 | MX11: 2021-12-16 | MY11: 2021-12-17 | MZ11: 2021-12-18 | NA11: 2021-12-19 | NB11: 2021-12-20 | NC11: 2021-12-21 | ND11: 2021-12-22 | NE11: 2021-12-23 | NF11: 2021-12-24 | NG11: 2021-12-25 | NH11: 2021-12-26 | NI11: 2021-12-27 | NJ11: 2021-12-28 | NK11: 2021-12-29 | NL11: 2021-12-30 | NM11: 2021-12-31 | NO11: |
A12: A | B12: 1.Prof | C12: 00.Admin | D12: 00.TimeOff | E12: 00.Start | F12: ----------------------------- | G12: ----------------------------- | H12: ----------- | I12: ----------- | J12: ----------- | L12: -----------------
A13: A | B13: 1.Prof | C13: 00.Admin | D13: 00.TimeOff | F13: 01.Vacation | G13: Vacation | H13: 120 | I13: =SUM(M13:NO13) -> 0 | J13: =H13-I13 -> 120 | NO13: |
A14: A | B14: 1.Prof | C14: 00.Admin | D14: 00.TimeOff | F14: 02.Sick Days | G14: Sick Days | H14: 80 | I14: =SUM(M14:NO14) -> 0 | J14: =H14-I14 -> 80 | NO14: |
A15: A | B15: 1.Prof | C15: 00.Admin | D15: 00.TimeOff | F15: 03.Holidays | G15: Holidays | H15: 48 | I15: 8 | J15: =H15-I15 -> 40 | M15: 8 | NO15: |
A16: A | B16: 1.Prof | C16: 01.Client 1 | D16: 01.projectName1 | E16: 00.Start | F16: ----------------------------- | G16: ----------------------------- | H16: -------- | I16: -------- | J16: -------- | L16: ----------------------------- | M16: -- | N16: -- | O16: -- | P16: -- | Q16: -- | R16: -- | S16: -- | T16: -- | U16: -- | V16: -- | W16: -- | X16: -- | Y16: -- | Z16: -- | AA16: -- | AB16: -- | AC16: -- | AD16: -- | AE16: -- | AF16: -- | AG16: -- | AH16: -- | AI16: -- | AJ16: -- | AK16: -- | AL16: -- | AM16: -- | AN16: -- | AO16: -- | AP16: -- | AQ16: -- | AR16: -- | AS16: -- | AT16: -- | AU16: -- | AV16: -- | AW16: -- | AX16: -- | AY16: -- | AZ16: -- | BA16: -- | BB16: -- | BC16: -- | BD16: -- | BE16: -- | BF16: -- | BG16: -- | BH16: -- | BI16: -- | BJ16: -- | BK16: -- | BL16: -- | BM16: -- | BN16: -- | BO16: -- | BP16: -- | BQ16: -- | BR16: -- | BS16: -- | BT16: -- | BU16: -- | BV16: -- | BW16: -- | BX16: -- | BY16: -- | BZ16: -- | CA16: -- | CB16: -- | CC16: -- | CD16: -- | CE16: -- | CF16: -- | CG16: -- | CH16: -- | CI16: -- | CJ16: -- | CK16: -- | CL16: -- | CM16: -- | CN16: -- | CO16: -- | CP16: -- | CQ16: -- | CR16: -- | CS16: -- | CT16: -- | CU16: -- | CV16: -- | CW16: -- | CX16: -- | CY16: -- | CZ16: -- | DA16: -- | DB16: -- | DC16: -- | DD16: -- | DE16: -- | DF16: -- | DG16: -- | DH16: -- | DI16: -- | DJ16: -- | DK16: -- | DL16: -- | DM16: -- | DN16: -- | DO16: -- | DP16: -- | DQ16: -- | DR16: -- | DS16: -- | DT16: -- | DU16: -- | DV16: -- | DW16: -- | DX16: -- | DY16: -- | DZ16: -- | EA16: -- | EB16: -- | EC16: -- | ED16: -- | EE16: -- | EF16: -- | EG16: -- | EH16: -- | EI16: -- | EJ16: -- | EK16: -- | EL16: -- | EM16: -- | EN16: -- | EO16: -- | EP16: -- | EQ16: -- | ER16: -- | ES16: -- | ET16: -- | EU16: -- | EV16: -- | EW16: -- | EX16: -- | EY16: -- | EZ16: -- | FA16: -- | FB16: -- | FC16: -- | FD16: -- | FE16: -- | FF16: -- | FG16: -- | FH16: -- | FI16: -- | FJ16: -- | FK16: -- | FL16: -- | FM16: -- | FN16: -- | FO16: -- | FP16: -- | FQ16: -- | FR16: -- | FS16: -- | FT16: -- | FU16: -- | FV16: -- | FW16: -- | FX16: -- | FY16: -- | FZ16: -- | GA16: -- | GB16: -- | GC16: -- | GD16: -- | GE16: -- | GF16: -- | GG16: -- | GH16: -- | GI16: -- | GJ16: -- | GK16: -- | GL16: -- | GM16: -- | GN16: -- | GO16: -- | GP16: -- | GQ16: -- | GR16: -- | GS16: -- | GT16: -- | GU16: -- | GV16: -- | GW16: -- | GX16: -- | GY16: -- | GZ16: -- | HA16: -- | HB16: -- | HC16: -- | HD16: -- | HE16: -- | HF16: -- | HG16: -- | HH16: -- | HI16: -- | HJ16: -- | HK16: -- | HL16: -- | HM16: -- | HN16: -- | HO16: -- | HP16: -- | HQ16: -- | HR16: -- | HS16: -- | HT16: -- | HU16: -- | HV16: -- | HW16: -- | HX16: -- | HY16: -- | HZ16: -- | IA16: -- | IB16: -- | IC16: -- | ID16: -- | IE16: -- | IF16: -- | IG16: -- | IH16: -- | II16: -- | IJ16: -- | IK16: -- | IL16: -- | IM16: -- | IN16: -- | IO16: -- | IP16: -- | IQ16: -- | IR16: -- | IS16: -- | IT16: -- | IU16: -- | IV16: -- | IW16: -- | IX16: -- | IY16: -- | IZ16: -- | JA16: -- | JB16: -- | JC16: -- | JD16: -- | JE16: -- | JF16: -- | JG16: -- | JH16: -- | JI16: -- | JJ16: -- | JK16: -- | JL16: -- | JM16: -- | JN16: -- | JO16: -- | JP16: -- | JQ16: -- | JR16: -- | JS16: -- | JT16: -- | JU16: -- | JV16: -- | JW16: -- | JX16: -- | JY16: -- | JZ16: -- | KA16: -- | KB16: -- | KC16: -- | KD16: -- | KE16: -- | KF16: -- | KG16: -- | KH16: -- | KI16: -- | KJ16: -- | KK16: -- | KL16: -- | KM16: -- | KN16: -- | KO16: -- | KP16: -- | KQ16: -- | KR16: -- | KS16: -- | KT16: -- | KU16: -- | KV16: -- | KW16: -- | KX16: -- | KY16: -- | KZ16: -- | LA16: -- | LB16: -- | LC16: -- | LD16: -- | LE16: -- | LF16: -- | LG16: -- | LH16: -- | LI16: -- | LJ16: -- | LK16: -- | LL16: -- | LM16: -- | LN16: -- | LO16: -- | LP16: -- | LQ16: -- | LR16: -- | LS16: -- | LT16: -- | LU16: -- | LV16: -- | LW16: -- | LX16: -- | LY16: -- | LZ16: -- | MA16: -- | MB16: -- | MC16: -- | MD16: -- | ME16: -- | MF16: -- | MG16: -- | MH16: -- | MI16: -- | MJ16: -- | MK16: -- | ML16: -- | MM16: -- | MN16: -- | MO16: -- | MP16: -- | MQ16: -- | MR16: -- | MS16: -- | MT16: -- | MU16: -- | MV16: -- | MW16: -- | MX16: -- | MY16: -- | MZ16: -- | NA16: -- | NB16: -- | NC16: -- | ND16: -- | NE16: -- | NF16: -- | NG16: -- | NH16: -- | NI16: -- | NJ16: -- | NK16: -- | NL16: -- | NM16: -- | NN16: -- | NO16: |
A17: A | B17: 1.Prof | C17: 01.Client 1 | D17: 01.projectName1 | E17: 01.Admin | F17: 01.Communications | G17: Admin/meetings/email | H17: 100 | I17: =SUM(M17:NO17) -> 12 | J17: =H17-I17 -> 88 | P17: 8 | Q17: 4 | NO17: |
A18: A | B18: 1.Prof | C18: 01.Client 1 | D18: 01.projectName1 | E18: 01.Admin | F18: 02.Budgets | G18: Annual budget – this year | H18: 100 | I18: =SUM(M18:NO18) -> 0 | J18: =H18-I18 -> 100 | NO18: |
A19: A | B19: 1.Prof | C19: 01.Client 1 | D19: 01.projectName1 | E19: 03.DataAnalysis | F19: Correlations | G19: dataAnalysis tasks 1, 2, etc. | H19: 80 | I19: 8 | J19: =H19-I19 -> 72 | X19: 4 | Y19: 4 | Z19: • | AA19: • | AD19: • | AE19: • | AF19: MS | NO19: |
A20: A | B20: 1.Prof | C20: 01.Client 1 | D20: 01.projectName1 | E20: 04.Reporting | F20: 01.Progress reports | G20: reporting tasks 1, 2, etc. | H20: 80 | I20: =SUM(M20:NO20) -> 0 | J20: =H20-I20 -> 80 | AG20: • | AH20: • | NO20: |
A21: A | B21: 1.Prof | C21: 01.Client 1 | D21: 02.projectName2 | E21: 00.Start | F21: ----------------------------- | G21: ----------------------------- | H21: -------- | I21: -------- | J21: -------- | L21: ----------------------------- | M21: -- | N21: -- | O21: -- | P21: -- | Q21: -- | R21: -- | S21: -- | T21: -- | U21: -- | V21: -- | W21: -- | X21: -- | Y21: -- | Z21: -- | AA21: -- | AB21: -- | AC21: -- | AD21: -- | AE21: -- | AF21: -- | AG21: -- | AH21: -- | AI21: -- | AJ21: -- | AK21: -- | AL21: -- | AM21: -- | AN21: -- | AO21: -- | AP21: -- | AQ21: -- | AR21: -- | AS21: -- | AT21: -- | AU21: -- | AV21: -- | AW21: -- | AX21: -- | AY21: -- | AZ21: -- | BA21: -- | BB21: -- | BC21: -- | BD21: -- | BE21: -- | BF21: -- | BG21: -- | BH21: -- | BI21: -- | BJ21: -- | BK21: -- | BL21: -- | BM21: -- | BN21: -- | BO21: -- | BP21: -- | BQ21: -- | BR21: -- | BS21: -- | BT21: -- | BU21: -- | BV21: -- | BW21: -- | BX21: -- | BY21: -- | BZ21: -- | CA21: -- | CB21: -- | CC21: -- | CD21: -- | CE21: -- | CF21: -- | CG21: -- | CH21: -- | CI21: -- | CJ21: -- | CK21: -- | CL21: -- | CM21: -- | CN21: -- | CO21: -- | CP21: -- | CQ21: -- | CR21: -- | CS21: -- | CT21: -- | CU21: -- | CV21: -- | CW21: -- | CX21: -- | CY21: -- | CZ21: -- | DA21: -- | DB21: -- | DC21: -- | DD21: -- | DE21: -- | DF21: -- | DG21: -- | DH21: -- | DI21: -- | DJ21: -- | DK21: -- | DL21: -- | DM21: -- | DN21: -- | DO21: -- | DP21: -- | DQ21: -- | DR21: -- | DS21: -- | DT21: -- | DU21: -- | DV21: -- | DW21: -- | DX21: -- | DY21: -- | DZ21: -- | EA21: -- | EB21: -- | EC21: -- | ED21: -- | EE21: -- | EF21: -- | EG21: -- | EH21: -- | EI21: -- | EJ21: -- | EK21: -- | EL21: -- | EM21: -- | EN21: -- | EO21: -- | EP21: -- | EQ21: -- | ER21: -- | ES21: -- | ET21: -- | EU21: -- | EV21: -- | EW21: -- | EX21: -- | EY21: -- | EZ21: -- | FA21: -- | FB21: -- | FC21: -- | FD21: -- | FE21: -- | FF21: -- | FG21: -- | FH21: -- | FI21: -- | FJ21: -- | FK21: -- | FL21: -- | FM21: -- | FN21: -- | FO21: -- | FP21: -- | FQ21: -- | FR21: -- | FS21: -- | FT21: -- | FU21: -- | FV21: -- | FW21: -- | FX21: -- | FY21: -- | FZ21: -- | GA21: -- | GB21: -- | GC21: -- | GD21: -- | GE21: -- | GF21: -- | GG21: -- | GH21: -- | GI21: -- | GJ21: -- | GK21: -- | GL21: -- | GM21: -- | GN21: -- | GO21: -- | GP21: -- | GQ21: -- | GR21: -- | GS21: -- | GT21: -- | GU21: -- | GV21: -- | GW21: -- | GX21: -- | GY21: -- | GZ21: -- | HA21: -- | HB21: -- | HC21: -- | HD21: -- | HE21: -- | HF21: -- | HG21: -- | HH21: -- | HI21: -- | HJ21: -- | HK21: -- | HL21: -- | HM21: -- | HN21: -- | HO21: -- | HP21: -- | HQ21: -- | HR21: -- | HS21: -- | HT21: -- | HU21: -- | HV21: -- | HW21: -- | HX21: -- | HY21: -- | HZ21: -- | IA21: -- | IB21: -- | IC21: -- | ID21: -- | IE21: -- | IF21: -- | IG21: -- | IH21: -- | II21: -- | IJ21: -- | IK21: -- | IL21: -- | IM21: -- | IN21: -- | IO21: -- | IP21: -- | IQ21: -- | IR21: -- | IS21: -- | IT21: -- | IU21: -- | IV21: -- | IW21: -- | IX21: -- | IY21: -- | IZ21: -- | JA21: -- | JB21: -- | JC21: -- | JD21: -- | JE21: -- | JF21: -- | JG21: -- | JH21: -- | JI21: -- | JJ21: -- | JK21: -- | JL21: -- | JM21: -- | JN21: -- | JO21: -- | JP21: -- | JQ21: -- | JR21: -- | JS21: -- | JT21: -- | JU21: -- | JV21: -- | JW21: -- | JX21: -- | JY21: -- | JZ21: -- | KA21: -- | KB21: -- | KC21: -- | KD21: -- | KE21: -- | KF21: -- | KG21: -- | KH21: -- | KI21: -- | KJ21: -- | KK21: -- | KL21: -- | KM21: -- | KN21: -- | KO21: -- | KP21: -- | KQ21: -- | KR21: -- | KS21: -- | KT21: -- | KU21: -- | KV21: -- | KW21: -- | KX21: -- | KY21: -- | KZ21: -- | LA21: -- | LB21: -- | LC21: -- | LD21: -- | LE21: -- | LF21: -- | LG21: -- | LH21: -- | LI21: -- | LJ21: -- | LK21: -- | LL21: -- | LM21: -- | LN21: -- | LO21: -- | LP21: -- | LQ21: -- | LR21: -- | LS21: -- | LT21: -- | LU21: -- | LV21: -- | LW21: -- | LX21: -- | LY21: -- | LZ21: -- | MA21: -- | MB21: -- | MC21: -- | MD21: -- | ME21: -- | MF21: -- | MG21: -- | MH21: -- | MI21: -- | MJ21: -- | MK21: -- | ML21: -- | MM21: -- | MN21: -- | MO21: -- | MP21: -- | MQ21: -- | MR21: -- | MS21: -- | MT21: -- | MU21: -- | MV21: -- | MW21: -- | MX21: -- | MY21: -- | MZ21: -- | NA21: -- | NB21: -- | NC21: -- | ND21: -- | NE21: -- | NF21: -- | NG21: -- | NH21: -- | NI21: -- | NJ21: -- | NK21: -- | NL21: -- | NM21: -- | NN21: -- | NO21: |
A22: A | B22: 1.Prof | C22: 01.Client 1 | D22: 02.projectName2 | E22: 01.Admin | F22: Comm | G22: Meetings/email | H22: 100 | I22: =SUM(M22:NO22) -> 8 | J22: =H22-I22 -> 92 | Q22: 4 | R22: 4 | NO22: |
A23: A | B23: 1.Prof | C23: 01.Client 1 | D23: 02.projectName2 | E23: 02.DataCollection | F23: Collate data | G23: dataCollection task 1 | H23: 80 | I23: =SUM(M23:NO23) -> 12 | J23: =H23-I23 -> 68 | S23: 4 | T23: 4 | Y23: 4 | AD23: • | AE23: • | AF23: • | AG23: • | AH23: • | NO23: |
A24: A | B24: 2.Service | C24: ---------- | D24: ---------- | E24: ---------- | F24: ----------------------------- | G24: ----------------------------- | H24: -------- | I24: -------- | J24: -------- | M24: -- | N24: -- | O24: -- | P24: -- | Q24: -- | R24: -- | S24: -- | T24: -- | U24: -- | V24: -- | W24: -- | X24: -- | Y24: -- | Z24: -- | AA24: -- | AB24: -- | AC24: -- | AD24: -- | AE24: -- | AF24: -- | AG24: -- | AH24: -- | AI24: -- | AJ24: -- | AK24: -- | AL24: -- | AM24: -- | AN24: -- | AO24: -- | AP24: -- | AQ24: -- | AR24: -- | AS24: -- | AT24: -- | AU24: -- | AV24: -- | AW24: -- | AX24: -- | AY24: -- | AZ24: -- | BA24: -- | BB24: -- | BC24: -- | BD24: -- | BE24: -- | BF24: -- | BG24: -- | BH24: -- | BI24: -- | BJ24: -- | BK24: -- | BL24: -- | BM24: -- | BN24: -- | BO24: -- | BP24: -- | BQ24: -- | BR24: -- | BS24: -- | BT24: -- | BU24: -- | BV24: -- | BW24: -- | BX24: -- | BY24: -- | BZ24: -- | CA24: -- | CB24: -- | CC24: -- | CD24: -- | CE24: -- | CF24: -- | CG24: -- | CH24: -- | CI24: -- | CJ24: -- | CK24: -- | CL24: -- | CM24: -- | CN24: -- | CO24: -- | CP24: -- | CQ24: -- | CR24: -- | CS24: -- | CT24: -- | CU24: -- | CV24: -- | CW24: -- | CX24: -- | CY24: -- | CZ24: -- | DA24: -- | DB24: -- | DC24: -- | DD24: -- | DE24: -- | DF24: -- | DG24: -- | DH24: -- | DI24: -- | DJ24: -- | DK24: -- | DL24: -- | DM24: -- | DN24: -- | DO24: -- | DP24: -- | DQ24: -- | DR24: -- | DS24: -- | DT24: -- | DU24: -- | DV24: -- | DW24: -- | DX24: -- | DY24: -- | DZ24: -- | EA24: -- | EB24: -- | EC24: -- | ED24: -- | EE24: -- | EF24: -- | EG24: -- | EH24: -- | EI24: -- | EJ24: -- | EK24: -- | EL24: -- | EM24: -- | EN24: -- | EO24: -- | EP24: -- | EQ24: -- | ER24: -- | ES24: -- | ET24: -- | EU24: -- | EV24: -- | EW24: -- | EX24: -- | EY24: -- | EZ24: -- | FA24: -- | FB24: -- | FC24: -- | FD24: -- | FE24: -- | FF24: -- | FG24: -- | FH24: -- | FI24: -- | FJ24: -- | FK24: -- | FL24: -- | FM24: -- | FN24: -- | FO24: -- | FP24: -- | FQ24: -- | FR24: -- | FS24: -- | FT24: -- | FU24: -- | FV24: -- | FW24: -- | FX24: -- | FY24: -- | FZ24: -- | GA24: -- | GB24: -- | GC24: -- | GD24: -- | GE24: -- | GF24: -- | GG24: -- | GH24: -- | GI24: -- | GJ24: -- | GK24: -- | GL24: -- | GM24: -- | GN24: -- | GO24: -- | GP24: -- | GQ24: -- | GR24: -- | GS24: -- | GT24: -- | GU24: -- | GV24: -- | GW24: -- | GX24: -- | GY24: -- | GZ24: -- | HA24: -- | HB24: -- | HC24: -- | HD24: -- | HE24: -- | HF24: -- | HG24: -- | HH24: -- | HI24: -- | HJ24: -- | HK24: -- | HL24: -- | HM24: -- | HN24: -- | HO24: -- | HP24: -- | HQ24: -- | HR24: -- | HS24: -- | HT24: -- | HU24: -- | HV24: -- | HW24: -- | HX24: -- | HY24: -- | HZ24: -- | IA24: -- | IB24: -- | IC24: -- | ID24: -- | IE24: -- | IF24: -- | IG24: -- | IH24: -- | II24: -- | IJ24: -- | IK24: -- | IL24: -- | IM24: -- | IN24: -- | IO24: -- | IP24: -- | IQ24: -- | IR24: -- | IS24: -- | IT24: -- | IU24: -- | IV24: -- | IW24: -- | IX24: -- | IY24: -- | IZ24: -- | JA24: -- | JB24: -- | JC24: -- | JD24: -- | JE24: -- | JF24: -- | JG24: -- | JH24: -- | JI24: -- | JJ24: -- | JK24: -- | JL24: -- | JM24: -- | JN24: -- | JO24: -- | JP24: -- | JQ24: -- | JR24: -- | JS24: -- | JT24: -- | JU24: -- | JV24: -- | JW24: -- | JX24: -- | JY24: -- | JZ24: -- | KA24: -- | KB24: -- | KC24: -- | KD24: -- | KE24: -- | KF24: -- | KG24: -- | KH24: -- | KI24: -- | KJ24: -- | KK24: -- | KL24: -- | KM24: -- | KN24: -- | KO24: -- | KP24: -- | KQ24: -- | KR24: -- | KS24: -- | KT24: -- | KU24: -- | KV24: -- | KW24: -- | KX24: -- | KY24: -- | KZ24: -- | LA24: -- | LB24: -- | LC24: -- | LD24: -- | LE24: -- | LF24: -- | LG24: -- | LH24: -- | LI24: -- | LJ24: -- | LK24: -- | LL24: -- | LM24: -- | LN24: -- | LO24: -- | LP24: -- | LQ24: -- | LR24: -- | LS24: -- | LT24: -- | LU24: -- | LV24: -- | LW24: -- | LX24: -- | LY24: -- | LZ24: -- | MA24: -- | MB24: -- | MC24: -- | MD24: -- | ME24: -- | MF24: -- | MG24: -- | MH24: -- | MI24: -- | MJ24: -- | MK24: -- | ML24: -- | MM24: -- | MN24: -- | MO24: -- | MP24: -- | MQ24: -- | MR24: -- | MS24: -- | MT24: -- | MU24: -- | MV24: -- | MW24: -- | MX24: -- | MY24: -- | MZ24: -- | NA24: -- | NB24: -- | NC24: -- | ND24: -- | NE24: -- | NF24: -- | NG24: -- | NH24: -- | NI24: -- | NJ24: -- | NK24: -- | NL24: -- | NM24: -- | NN24: -- | NO24: |
A25: A | B25: 2.Service | C25: 01.GoodCause1 | D25: GC1_project1 | E25: 01.Admin | F25: Comm | G25: Meetings/email | H25: 50 | I25: =SUM(M25:NO25) -> 0 | J25: =H25-I25 -> 50 | NO25: |
A26: A | B26: 2.Service | C26: 01.GoodCause2 | D26: GC2_project1 | G26: Volunteer | H26: 100 | I26: =SUM(M26:NO26) -> 0 | J26: =H26-I26 -> 100 | NO26: |
A27: A | B27: 3.Home | C27: ---------- | D27: ---------- | E27: ---------- | F27: ----------------------------- | G27: ----------------------------- | H27: -------- | I27: -------- | J27: -------- | L27: ----------------------------- | M27: -- | N27: -- | O27: -- | P27: -- | Q27: -- | R27: -- | S27: -- | T27: -- | U27: -- | V27: -- | W27: -- | X27: -- | Y27: -- | Z27: -- | AA27: -- | AB27: -- | AC27: -- | AD27: -- | AE27: -- | AF27: -- | AG27: -- | AH27: -- | AI27: -- | AJ27: -- | AK27: -- | AL27: -- | AM27: -- | AN27: -- | AO27: -- | AP27: -- | AQ27: -- | AR27: -- | AS27: -- | AT27: -- | AU27: -- | AV27: -- | AW27: -- | AX27: -- | AY27: -- | AZ27: -- | BA27: -- | BB27: -- | BC27: -- | BD27: -- | BE27: -- | BF27: -- | BG27: -- | BH27: -- | BI27: -- | BJ27: -- | BK27: -- | BL27: -- | BM27: -- | BN27: -- | BO27: -- | BP27: -- | BQ27: -- | BR27: -- | BS27: -- | BT27: -- | BU27: -- | BV27: -- | BW27: -- | BX27: -- | BY27: -- | BZ27: -- | CA27: -- | CB27: -- | CC27: -- | CD27: -- | CE27: -- | CF27: -- | CG27: -- | CH27: -- | CI27: -- | CJ27: -- | CK27: -- | CL27: -- | CM27: -- | CN27: -- | CO27: -- | CP27: -- | CQ27: -- | CR27: -- | CS27: -- | CT27: -- | CU27: -- | CV27: -- | CW27: -- | CX27: -- | CY27: -- | CZ27: -- | DA27: -- | DB27: -- | DC27: -- | DD27: -- | DE27: -- | DF27: -- | DG27: -- | DH27: -- | DI27: -- | DJ27: -- | DK27: -- | DL27: -- | DM27: -- | DN27: -- | DO27: -- | DP27: -- | DQ27: -- | DR27: -- | DS27: -- | DT27: -- | DU27: -- | DV27: -- | DW27: -- | DX27: -- | DY27: -- | DZ27: -- | EA27: -- | EB27: -- | EC27: -- | ED27: -- | EE27: -- | EF27: -- | EG27: -- | EH27: -- | EI27: -- | EJ27: -- | EK27: -- | EL27: -- | EM27: -- | EN27: -- | EO27: -- | EP27: -- | EQ27: -- | ER27: -- | ES27: -- | ET27: -- | EU27: -- | EV27: -- | EW27: -- | EX27: -- | EY27: -- | EZ27: -- | FA27: -- | FB27: -- | FC27: -- | FD27: -- | FE27: -- | FF27: -- | FG27: -- | FH27: -- | FI27: -- | FJ27: -- | FK27: -- | FL27: -- | FM27: -- | FN27: -- | FO27: -- | FP27: -- | FQ27: -- | FR27: -- | FS27: -- | FT27: -- | FU27: -- | FV27: -- | FW27: -- | FX27: -- | FY27: -- | FZ27: -- | GA27: -- | GB27: -- | GC27: -- | GD27: -- | GE27: -- | GF27: -- | GG27: -- | GH27: -- | GI27: -- | GJ27: -- | GK27: -- | GL27: -- | GM27: -- | GN27: -- | GO27: -- | GP27: -- | GQ27: -- | GR27: -- | GS27: -- | GT27: -- | GU27: -- | GV27: -- | GW27: -- | GX27: -- | GY27: -- | GZ27: -- | HA27: -- | HB27: -- | HC27: -- | HD27: -- | HE27: -- | HF27: -- | HG27: -- | HH27: -- | HI27: -- | HJ27: -- | HK27: -- | HL27: -- | HM27: -- | HN27: -- | HO27: -- | HP27: -- | HQ27: -- | HR27: -- | HS27: -- | HT27: -- | HU27: -- | HV27: -- | HW27: -- | HX27: -- | HY27: -- | HZ27: -- | IA27: -- | IB27: -- | IC27: -- | ID27: -- | IE27: -- | IF27: -- | IG27: -- | IH27: -- | II27: -- | IJ27: -- | IK27: -- | IL27: -- | IM27: -- | IN27: -- | IO27: -- | IP27: -- | IQ27: -- | IR27: -- | IS27: -- | IT27: -- | IU27: -- | IV27: -- | IW27: -- | IX27: -- | IY27: -- | IZ27: -- | JA27: -- | JB27: -- | JC27: -- | JD27: -- | JE27: -- | JF27: -- | JG27: -- | JH27: -- | JI27: -- | JJ27: -- | JK27: -- | JL27: -- | JM27: -- | JN27: -- | JO27: -- | JP27: -- | JQ27: -- | JR27: -- | JS27: -- | JT27: -- | JU27: -- | JV27: -- | JW27: -- | JX27: -- | JY27: -- | JZ27: -- | KA27: -- | KB27: -- | KC27: -- | KD27: -- | KE27: -- | KF27: -- | KG27: -- | KH27: -- | KI27: -- | KJ27: -- | KK27: -- | KL27: -- | KM27: -- | KN27: -- | KO27: -- | KP27: -- | KQ27: -- | KR27: -- | KS27: -- | KT27: -- | KU27: -- | KV27: -- | KW27: -- | KX27: -- | KY27: -- | KZ27: -- | LA27: -- | LB27: -- | LC27: -- | LD27: -- | LE27: -- | LF27: -- | LG27: -- | LH27: -- | LI27: -- | LJ27: -- | LK27: -- | LL27: -- | LM27: -- | LN27: -- | LO27: -- | LP27: -- | LQ27: -- | LR27: -- | LS27: -- | LT27: -- | LU27: -- | LV27: -- | LW27: -- | LX27: -- | LY27: -- | LZ27: -- | MA27: -- | MB27: -- | MC27: -- | MD27: -- | ME27: -- | MF27: -- | MG27: -- | MH27: -- | MI27: -- | MJ27: -- | MK27: -- | ML27: -- | MM27: -- | MN27: -- | MO27: -- | MP27: -- | MQ27: -- | MR27: -- | MS27: -- | MT27: -- | MU27: -- | MV27: -- | MW27: -- | MX27: -- | MY27: -- | MZ27: -- | NA27: -- | NB27: -- | NC27: -- | ND27: -- | NE27: -- | NF27: -- | NG27: -- | NH27: -- | NI27: -- | NJ27: -- | NK27: -- | NL27: -- | NM27: -- | NN27: -- | NO27: |
A28: A | B28: 3.Home | C28: 0.Admin/Office | D28: 1.HomeOffice | F28: Tax return | G28: Assemble documents to file income tax | H28: 16 | I28: =SUM(M28:NO28) -> 0 | J28: =H28-I28 -> 16 | NO28: |
A29: A | B29: 3.Home | C29: 1.Repairs | D29: 2.PrimaryHome | F29: Front steps | G29: Choose design | H29: 2 | I29: =SUM(M29:NO29) -> 0 | J29: =H29-I29 -> 2 | NO29: |
A30: A | B30: 3.Home | C30: 1.Repairs | D30: 3.VacationHome | F30: Replace blinds | G30: Blinds: purchase & install | H30: 8 | I30: 0 | J30: =H30-I30 -> 8 | NO30: |
A31: A | B31: 4.Personal | C31: ---------- | D31: ---------- | E31: ---------- | F31: ----------------------------- | G31: ----------------------------- | H31: -------- | I31: -------- | J31: -------- | L31: ----------------------------- | M31: -- | N31: -- | O31: -- | P31: -- | Q31: -- | R31: -- | S31: -- | T31: -- | U31: -- | V31: -- | W31: -- | X31: -- | Y31: -- | Z31: -- | AA31: -- | AB31: -- | AC31: -- | AD31: -- | AE31: -- | AF31: -- | AG31: -- | AH31: -- | AI31: -- | AJ31: -- | AK31: -- | AL31: -- | AM31: -- | AN31: -- | AO31: -- | AP31: -- | AQ31: -- | AR31: -- | AS31: -- | AT31: -- | AU31: -- | AV31: -- | AW31: -- | AX31: -- | AY31: -- | AZ31: -- | BA31: -- | BB31: -- | BC31: -- | BD31: -- | BE31: -- | BF31: -- | BG31: -- | BH31: -- | BI31: -- | BJ31: -- | BK31: -- | BL31: -- | BM31: -- | BN31: -- | BO31: -- | BP31: -- | BQ31: -- | BR31: -- | BS31: -- | BT31: -- | BU31: -- | BV31: -- | BW31: -- | BX31: -- | BY31: -- | BZ31: -- | CA31: -- | CB31: -- | CC31: -- | CD31: -- | CE31: -- | CF31: -- | CG31: -- | CH31: -- | CI31: -- | CJ31: -- | CK31: -- | CL31: -- | CM31: -- | CN31: -- | CO31: -- | CP31: -- | CQ31: -- | CR31: -- | CS31: -- | CT31: -- | CU31: -- | CV31: -- | CW31: -- | CX31: -- | CY31: -- | CZ31: -- | DA31: -- | DB31: -- | DC31: -- | DD31: -- | DE31: -- | DF31: -- | DG31: -- | DH31: -- | DI31: -- | DJ31: -- | DK31: -- | DL31: -- | DM31: -- | DN31: -- | DO31: -- | DP31: -- | DQ31: -- | DR31: -- | DS31: -- | DT31: -- | DU31: -- | DV31: -- | DW31: -- | DX31: -- | DY31: -- | DZ31: -- | EA31: -- | EB31: -- | EC31: -- | ED31: -- | EE31: -- | EF31: -- | EG31: -- | EH31: -- | EI31: -- | EJ31: -- | EK31: -- | EL31: -- | EM31: -- | EN31: -- | EO31: -- | EP31: -- | EQ31: -- | ER31: -- | ES31: -- | ET31: -- | EU31: -- | EV31: -- | EW31: -- | EX31: -- | EY31: -- | EZ31: -- | FA31: -- | FB31: -- | FC31: -- | FD31: -- | FE31: -- | FF31: -- | FG31: -- | FH31: -- | FI31: -- | FJ31: -- | FK31: -- | FL31: -- | FM31: -- | FN31: -- | FO31: -- | FP31: -- | FQ31: -- | FR31: -- | FS31: -- | FT31: -- | FU31: -- | FV31: -- | FW31: -- | FX31: -- | FY31: -- | FZ31: -- | GA31: -- | GB31: -- | GC31: -- | GD31: -- | GE31: -- | GF31: -- | GG31: -- | GH31: -- | GI31: -- | GJ31: -- | GK31: -- | GL31: -- | GM31: -- | GN31: -- | GO31: -- | GP31: -- | GQ31: -- | GR31: -- | GS31: -- | GT31: -- | GU31: -- | GV31: -- | GW31: -- | GX31: -- | GY31: -- | GZ31: -- | HA31: -- | HB31: -- | HC31: -- | HD31: -- | HE31: -- | HF31: -- | HG31: -- | HH31: -- | HI31: -- | HJ31: -- | HK31: -- | HL31: -- | HM31: -- | HN31: -- | HO31: -- | HP31: -- | HQ31: -- | HR31: -- | HS31: -- | HT31: -- | HU31: -- | HV31: -- | HW31: -- | HX31: -- | HY31: -- | HZ31: -- | IA31: -- | IB31: -- | IC31: -- | ID31: -- | IE31: -- | IF31: -- | IG31: -- | IH31: -- | II31: -- | IJ31: -- | IK31: -- | IL31: -- | IM31: -- | IN31: -- | IO31: -- | IP31: -- | IQ31: -- | IR31: -- | IS31: -- | IT31: -- | IU31: -- | IV31: -- | IW31: -- | IX31: -- | IY31: -- | IZ31: -- | JA31: -- | JB31: -- | JC31: -- | JD31: -- | JE31: -- | JF31: -- | JG31: -- | JH31: -- | JI31: -- | JJ31: -- | JK31: -- | JL31: -- | JM31: -- | JN31: -- | JO31: -- | JP31: -- | JQ31: -- | JR31: -- | JS31: -- | JT31: -- | JU31: -- | JV31: -- | JW31: -- | JX31: -- | JY31: -- | JZ31: -- | KA31: -- | KB31: -- | KC31: -- | KD31: -- | KE31: -- | KF31: -- | KG31: -- | KH31: -- | KI31: -- | KJ31: -- | KK31: -- | KL31: -- | KM31: -- | KN31: -- | KO31: -- | KP31: -- | KQ31: -- | KR31: -- | KS31: -- | KT31: -- | KU31: -- | KV31: -- | KW31: -- | KX31: -- | KY31: -- | KZ31: -- | LA31: -- | LB31: -- | LC31: -- | LD31: -- | LE31: -- | LF31: -- | LG31: -- | LH31: -- | LI31: -- | LJ31: -- | LK31: -- | LL31: -- | LM31: -- | LN31: -- | LO31: -- | LP31: -- | LQ31: -- | LR31: -- | LS31: -- | LT31: -- | LU31: -- | LV31: -- | LW31: -- | LX31: -- | LY31: -- | LZ31: -- | MA31: -- | MB31: -- | MC31: -- | MD31: -- | ME31: -- | MF31: -- | MG31: -- | MH31: -- | MI31: -- | MJ31: -- | MK31: -- | ML31: -- | MM31: -- | MN31: -- | MO31: -- | MP31: -- | MQ31: -- | MR31: -- | MS31: -- | MT31: -- | MU31: -- | MV31: -- | MW31: -- | MX31: -- | MY31: -- | MZ31: -- | NA31: -- | NB31: -- | NC31: -- | ND31: -- | NE31: -- | NF31: -- | NG31: -- | NH31: -- | NI31: -- | NJ31: -- | NK31: -- | NL31: -- | NM31: -- | NN31: -- | NO31: |
A32: A | B32: 4.Personal | C32: 2.Fitness | D32: Cardio | F32: Running Plan | G32: Develop running routes and plan | H32: 4 | I32: 0 | J32: =H32-I32 -> 4 | NO32: |
A33: A | B33: 4.Personal | C33: 3.Rec | D33: Sailing | E33: Electronics | F33: Battery system | G33: Buy new batteries / build battery shelf | H33: 8 | I33: 0 | J33: =H33-I33 -> 8 | NO33: |
A34: A | B34: 5.Break | C34: ----- | D34: End week's tasks | E34: ---------- | F34: ----------------------------- | G34: ----------------------------- | H34: -------- | I34: -------- | J34: -------- | NO34: |
A35: LA | B35: 1.Prof | C35: 01.Client 1 | D35: 01.projectName1 | E35: 04.Reporting | F35: 02.Final report | G35: reporting tasks 1, 2, etc. | H35: 160 | I35: 0 | J35: =H35-I35 -> 160 | AK35: • | AL35: • | AM35: • | AN35: • | AO35: • | AR35: • | AS35: • | AT35: • | AU35: • | AV35: DL | NO35: |
A36: LA | B36: 1.Prof | C36: 01.Client 1 | D36: 01.projectName1 | E36: 04.Reporting | F36: 03.Fact sheet | G36: reporting tasks 1, 2, etc. | H36: 80 | I36: 0 | J36: 80 | AY36: • | AZ36: • | BA36: • | NO36: |
A37: LA | B37: 1.Prof | C37: 01.Client 1 | D37: 01.projectName1 | E37: 05.Outreach/Service | F37: Presentations | G37: outreach tasks | H37: 40 | I37: 0 | J37: 40 | BA37: • | BB37: • | NO37: |
A38: LA | B38: 4.Personal | C38: 1.Social | D38: People | F38: Dinners | G38: Schedule dinner with Friends#1 | H38: 2 | I38: 0 | J38: 2 | NO38: |
A39: X | B39: 3.Home | C39: 1.Repairs | D39: 2.PrimaryHome | F39: Dryer | G39: Replace drive belt | H39: 8 | I39: 8 | J39: 0 | K39: 2021-01-03 | N39: 4 | O39: 4 | NO39: |
A40: X | B40: 1.Prof | C40: 01.Client 1 | D40: 01.projectName1 | E40: 02.DataCollection | F40: 01.Spatial | G40: dataCollection, task 1 | H40: 80 | I40: 8 | J40: 72 | K40: 2021-01-07 | R40: 4 | S40: 4 | NO40: |
A41: X | B41: 1.Prof | C41: 01.Client 1 | D41: 01.projectName1 | E41: 02.DataCollection | F41: 02.Water-quality | G41: dataCollection, task 2 | H41: 80 | I41: 8 | J41: 72 | K41: 2021-01-11 | T41: 4 | W41: 4 | NO41: |
A72: - | D72: - | E72: - | G72: - | H72: - | I72: - | J72: - | K72: - | L72: - | M72: - | N72: - | O72: - | P72: - | Q72: - | R72: - | S72: - | T72: - | U72: - | V72: - | W72: - | X72: - | Y72: - | Z72: - | AA72: - | AB72: - | AC72: - | AD72: - | AE72: - | AF72: - | AG72: - | AH72: - | AI72: - | AJ72: - | AK72: - | AL72: - | AM72: - | AN72: - | AO72: - | AP72: - | AQ72: - | AR72: - | AS72: - | AT72: - | AU72: - | AV72: - | AW72: - | AX72: - | AY72: - | AZ72: - | BA72: - | BB72: - | BC72: - | BD72: - | BE72: - | BF72: - | BG72: - | BH72: - | BI72: - | BJ72: - | BK72: - | BL72: - | BM72: - | BN72: - | BO72: - | BP72: - | BQ72: - | BR72: - | BS72: - | BT72: - | BU72: - | BV72: - | BW72: - | BX72: - | BY72: - | BZ72: - | CA72: - | CB72: - | CC72: - | CD72: - | CE72: - | CF72: - | CG72: - | CH72: - | CI72: - | CJ72: - | CK72: - | CL72: - | CM72: - | CN72: - | CO72: - | CP72: - | CQ72: - | CR72: - | CS72: - | CT72: - | CU72: - | CV72: - | CW72: - | CX72: - | CY72: - | CZ72: - | DA72: - | DB72: - | DC72: - | DD72: - | DE72: - | DF72: - | DG72: - | DH72: - | DI72: - | DJ72: - | DK72: - | DL72: - | DM72: - | DN72: - | DO72: - | DP72: - | DQ72: - | DR72: - | DS72: - | DT72: - | DU72: - | DV72: - | DW72: - | DX72: - | DY72: - | DZ72: - | EA72: - | EB72: - | EC72: - | ED72: - | EE72: - | EF72: - | EG72: - | EH72: - | EI72: - | EJ72: - | EK72: - | EL72: - | EM72: - | EN72: - | EO72: - | EP72: - | EQ72: - | ER72: - | ES72: - | ET72: - | EU72: - | EV72: - | EW72: - | EX72: - | EY72: - | EZ72: - | FA72: - | FB72: - | FC72: - | FD72: - | FE72: - | FF72: - | FG72: - | FH72: - | FI72: - | FJ72: - | FK72: - | FL72: - | FM72: - | FN72: - | FO72: - | FP72: - | FQ72: - | FR72: - | FS72: - | FT72: - | FU72: - | FV72: - | FW72: - | FX72: - | FY72: - | FZ72: - | GA72: - | GB72: - | GC72: - | GD72: - | GE72: - | GF72: - | GG72: - | GH72: - | GI72: - | GJ72: - | GK72: - | GL72: - | GM72: - | GN72: - | GO72: - | GP72: - | GQ72: - | GR72: - | GS72: - | GT72: - | GU72: - | GV72: - | GW72: - | GX72: - | GY72: - | GZ72: - | HA72: - | HB72: - | HC72: - | HD72: - | HE72: - | HF72: - | HG72: - | HH72: - | HI72: - | HJ72: - | HK72: - | HL72: - | HM72: - | HN72: - | HO72: - | HP72: - | HQ72: - | HR72: - | HS72: - | HT72: - | HU72: - | HV72: - | HW72: - | HX72: - | HY72: - | HZ72: - | IA72: - | IB72: - | IC72: - | ID72: - | IE72: - | IF72: - | IG72: - | IH72: - | II72: - | IJ72: - | IK72: - | IL72: - | IM72: - | IN72: - | IO72: - | IP72: - | IQ72: - | IR72: - | IS72: - | IT72: - | IU72: - | IV72: - | IW72: - | IX72: - | IY72: - | IZ72: - | JA72: - | JB72: - | JC72: - | JD72: - | JE72: - | JF72: - | JG72: - | JH72: - | JI72: - | JJ72: - | JK72: - | JL72: - | JM72: - | JN72: - | JO72: - | JP72: - | JQ72: - | JR72: - | JS72: - | JT72: - | JU72: - | JV72: - | JW72: - | JX72: - | JY72: - | JZ72: - | KA72: - | KB72: - | KC72: - | KD72: - | KE72: - | KF72: - | KG72: - | KH72: - | KI72: - | KJ72: - | KK72: - | KL72: - | KM72: - | KN72: - | KO72: - | KP72: - | KQ72: - | KR72: - | KS72: - | KT72: - | KU72: - | KV72: - | KW72: - | KX72: - | KY72: - | KZ72: - | LA72: - | LB72: - | LC72: - | LD72: - | LE72: - | LF72: - | LG72: - | LH72: - | LI72: - | LJ72: - | LK72: - | LL72: - | LM72: - | LN72: - | LO72: - | LP72: - | LQ72: - | LR72: - | LS72: - | LT72: - | LU72: - | LV72: - | LW72: - | LX72: - | LY72: - | LZ72: - | MA72: - | MB72: - | MC72: - | MD72: - | ME72: - | MF72: - | MG72: - | MH72: - | MI72: - | MJ72: - | MK72: - | ML72: - | MM72: - | MN72: - | MO72: - | MP72: - | MQ72: - | MR72: - | MS72: - | MT72: - | MU72: - | MV72: - | MW72: - | MX72: - | MY72: - | MZ72: - | NA72: - | NB72: - | NC72: - | ND72: - | NE72: - | NF72: - | NG72: - | NH72: - | NI72: - | NJ72: - | NK72: - | NL72: - | NM72: - | NN72: - | NO72: -
G73: Total hours | H73: =SUM(H13:H72) -> 1426 | I73: =SUM(I13:I72) -> 72 | J73: =SUM(J13:J72) -> 1354 | L73: Hours worked | M73: =SUM(M16:M72) -> 0 | N73: =SUM(N16:N72) -> 4 | O73: 4 | P73: 8 | Q73: 8 | R73: 8 | S73: 8 | T73: 8 | U73: 0 | V73: 0 | W73: 4 | X73: 4 | Y73: 8 | Z73: 0 | AA73: 0 | AB73: 0 | AC73: 0 | AD73: 0 | AE73: 0 | AF73: 0 | AG73: 0 | AH73: 0 | AI73: 0 | AJ73: 0 | AK73: 0 | AL73: 0 | AM73: 0 | AN73: 0 | AO73: 0 | AP73: 0 | AQ73: 0 | AR73: 0 | AS73: 0 | AT73: 0 | AU73: 0 | AV73: 0 | AW73: 0 | AX73: 0 | AY73: 0 | AZ73: 0 | BA73: 0 | BB73: 0 | BC73: 0 | BD73: 0 | BE73: 0 | BF73: 0 | BG73: 0 | BH73: 0 | BI73: 0 | BJ73: 0 | BK73: 0 | BL73: 0 | BM73: 0 | BN73: 0 | BO73: 0 | BP73: 0 | BQ73: 0 | BR73: 0 | BS73: 0 | BT73: 0 | BU73: 0 | BV73: 0 | BW73: 0 | BX73: 0 | BY73: 0 | BZ73: =SUM(BZ16:BZ72) -> 0 | CA73: 0 | CB73: 0 | CC73: 0 | CD73: 0 | CE73: 0 | CF73: 0 | CG73: 0 | CH73: 0 | CI73: 0 | CJ73: 0 | CK73: 0 | CL73: 0 | CM73: 0 | CN73: 0 | CO73: 0 | CP73: 0 | CQ73: 0 | CR73: 0 | CS73: 0 | CT73: 0 | CU73: 0 | CV73: 0 | CW73: 0 | CX73: 0 | CY73: 0 | CZ73: 0 | DA73: 0 | DB73: 0 | DC73: 0 | DD73: 0 | DE73: 0 | DF73: 0 | DG73: 0 | DH73: 0 | DI73: 0 | DJ73: 0 | DK73: 0 | DL73: 0 | DM73: 0 | DN73: 0 | DO73: 0 | DP73: 0 | DQ73: 0 | DR73: 0 | DS73: 0 | DT73: 0 | DU73: 0 | DV73: 0 | DW73: 0 | DX73: 0 | DY73: 0 | DZ73: 0 | EA73: 0 | EB73: 0 | EC73: 0 | ED73: 0 | EE73: 0 | EF73: 0 | EG73: 0 | EH73: 0 | EI73: 0 | EJ73: 0 | EK73: 0 | EL73: =SUM(EL16:EL72) -> 0 | EM73: 0 | EN73: 0 | EO73: 0 | EP73: 0 | EQ73: 0 | ER73: 0 | ES73: 0 | ET73: 0 | EU73: 0 | EV73: 0 | EW73: 0 | EX73: 0 | EY73: 0 | EZ73: 0 | FA73: 0 | FB73: 0 | FC73: 0 | FD73: 0 | FE73: 0 | FF73: 0 | FG73: 0 | FH73: 0 | FI73: 0 | FJ73: 0 | FK73: 0 | FL73: 0 | FM73: 0 | FN73: 0 | FO73: 0 | FP73: 0 | FQ73: 0 | FR73: 0 | FS73: 0 | FT73: 0 | FU73: 0 | FV73: 0 | FW73: 0 | FX73: 0 | FY73: 0 | FZ73: 0 | GA73: 0 | GB73: 0 | GC73: 0 | GD73: 0 | GE73: 0 | GF73: 0 | GG73: 0 | GH73: 0 | GI73: 0 | GJ73: 0 | GK73: 0 | GL73: 0 | GM73: 0 | GN73: 0 | GO73: 0 | GP73: 0 | GQ73: 0 | GR73: 0 | GS73: 0 | GT73: 0 | GU73: 0 | GV73: 0 | GW73: 0 | GX73: =SUM(GX16:GX72) -> 0 | GY73: 0 | GZ73: 0 | HA73: 0 | HB73: 0 | HC73: 0 | HD73: 0 | HE73: 0 | HF73: 0 | HG73: 0 | HH73: 0 | HI73: 0 | HJ73: 0 | HK73: 0 | HL73: 0 | HM73: 0 | HN73: 0 | HO73: 0 | HP73: 0 | HQ73: 0 | HR73: 0 | HS73: 0 | HT73: 0 | HU73: 0 | HV73: 0 | HW73: 0 | HX73: 0 | HY73: 0 | HZ73: 0 | IA73: 0 | IB73: 0 | IC73: 0 | ID73: 0 | IE73: 0 | IF73: 0 | IG73: 0 | IH73: 0 | II73: 0 | IJ73: 0 | IK73: 0 | IL73: 0 | IM73: 0 | IN73: 0 | IO73: 0 | IP73: 0 | IQ73: 0 | IR73: 0 | IS73: 0 | IT73: 0 | IU73: 0 | IV73: 0 | IW73: 0 | IX73: 0 | IY73: 0 | IZ73: 0 | JA73: 0 | JB73: 0 | JC73: 0 | JD73: 0 | JE73: 0 | JF73: 0 | JG73: 0 | JH73: 0 | JI73: 0 | JJ73: =SUM(JJ16:JJ72) -> 0 | JK73: 0 | JL73: 0 | JM73: 0 | JN73: 0 | JO73: 0 | JP73: 0 | JQ73: 0 | JR73: 0 | JS73: 0 | JT73: 0 | JU73: 0 | JV73: 0 | JW73: 0 | JX73: 0 | JY73: 0 | JZ73: 0 | KA73: 0 | KB73: 0 | KC73: 0 | KD73: 0 | KE73: 0 | KF73: 0 | KG73: 0 | KH73: 0 | KI73: 0 | KJ73: 0 | KK73: 0 | KL73: 0 | KM73: 0 | KN73: 0 | KO73: 0 | KP73: 0 | KQ73: 0 | KR73: 0 | KS73: 0 | KT73: 0 | KU73: 0 | KV73: 0 | KW73: 0 | KX73: 0 | KY73: 0 | KZ73: 0 | LA73: 0 | LB73: 0 | LC73: 0 | LD73: 0 | LE73: 0 | LF73: 0 | LG73: 0 | LH73: 0 | LI73: 0 | LJ73: 0 | LK73: 0 | LL73: 0 | LM73: 0 | LN73: 0 | LO73: 0 | LP73: 0 | LQ73: 0 | LR73: 0 | LS73: 0 | LT73: 0 | LU73: 0 | LV73: =SUM(LV16:LV72) -> 0 | LW73: 0 | LX73: 0 | LY73: 0 | LZ73: 0 | MA73: 0 | MB73: 0 | MC73: 0 | MD73: 0 | ME73: 0 | MF73: 0 | MG73: 0 | MH73: 0 | MI73: 0 | MJ73: 0 | MK73: 0 | ML73: 0 | MM73: 0 | MN73: 0 | MO73: 0 | MP73: 0 | MQ73: 0 | MR73: 0 | MS73: 0 | MT73: 0 | MU73: 0 | MV73: 0 | MW73: 0 | MX73: 0 | MY73: 0 | MZ73: 0 | NA73: 0 | NB73: 0 | NC73: 0 | ND73: 0 | NE73: 0 | NF73: 0 | NG73: 0 | NH73: 0 | NI73: 0 | NJ73: 0 | NK73: 0 | NL73: 0 | NM73: 0 | NN73: 0
L74: Time off | M74: =IF(SUM(M13:M15)>0, SUM(M13:M15), "") -> 8 | BY74: =IF(SUM(BY13:BY15)>0, SUM(BY13:BY15), "") ->  | EK74: =IF(SUM(EK13:EK15)>0, SUM(EK13:EK15), "") ->  | GW74: =IF(SUM(GW13:GW15)>0, SUM(GW13:GW15), "") ->  | JI74: =IF(SUM(JI13:JI15)>0, SUM(JI13:JI15), "") ->  | LU74: =IF(SUM(LU13:LU15)>0, SUM(LU13:LU15), "") -> 
G76: Hours per project | H76: Est | I76: Act | J76: Rem
G77: 00.TimeOff | H77: =SUMIF($D$13:$D$72, $G77, H$13:H$72) -> 248 | I77: 8 | J77: 240
G78: 01.projectName1 | H78: 800 | I78: 36 | J78: 764
G79: 02.projectName2 | H79: 180 | I79: 20 | J79: 160
G80: GC1_project1 | H80: 50 | I80: 0 | J80: 50
G81: GC2_project1 | H81: 100 | I81: 0 | J81: 100
G82: 1.HomeOffice | H82: 16 | I82: 0 | J82: 16
G83: 2.PrimaryHome | H83: 10 | I83: 8 | J83: 2
G84: 3.VacationHome | H84: 8 | I84: 0 | J84: 8
G85: Cardio | H85: 4 | I85: 0 | J85: 4
G86: Sailing | H86: 8 | I86: 0 | J86: 8
G87: People | H87: 2 | I87: 0 | J87: 2
G88: Insert new lines for new projects | H88: 0 | I88: 0 | J88: 0
G89: and copy down forumlas as needed | H89: 0 | I89: 0 | J89: 0
G90: - | H90: - | I90: - | J90: -
G91: Hours total | H91: =SUM(H77:H90) -> 1426 | I91: =SUM(I77:I90) -> 72 | J91: =SUM(J77:J90) -> 1354

Sheet 2.HabitTracker_example
A1: HABIT TRACKER | B1: ="CY "&F7 -> CY 2021 | C1: Put nothing in grey rows, to preserve sorting, if needed
A2: J. E. Almendinger | C2: Enter minutes in chart; tallied below as hours
C3: (except sleep is entered directly as hours)
AM5: Last day at SMM: 3 Aug
F7: 2021
C8: Total | D8: Spent | E8: Remaining | F8: January | AK8: February | BM8: March | CR8: April | DV8: May | FA8: June | GE8: July | HJ8: August | IO8: September | JS8: October | KX8: November | MB8: December | NH8: |
B9: For sorting purposes, leave line blank above column IDs | C9: Hours | D9: Hours | E9: Hours | F9: F | G9: S | H9: S | I9: M | J9: T | K9: W | L9: Th | M9: =F9 -> F | N9: S | O9: S | P9: M | Q9: T | R9: W | S9: Th | T9: F | U9: S | V9: S | W9: M | X9: T | Y9: W | Z9: Th | AA9: F | AB9: S | AC9: S | AD9: M | AE9: T | AF9: W | AG9: Th | AH9: F | AI9: S | AJ9: S | AK9: M | AL9: T | AM9: W | AN9: Th | AO9: F | AP9: S | AQ9: S | AR9: M | AS9: T | AT9: W | AU9: Th | AV9: F | AW9: S | AX9: S | AY9: M | AZ9: T | BA9: W | BB9: Th | BC9: F | BD9: S | BE9: S | BF9: M | BG9: T | BH9: W | BI9: Th | BJ9: F | BK9: S | BL9: S | BM9: M | BN9: T | BO9: W | BP9: Th | BQ9: F | BR9: S | BS9: S | BT9: M | BU9: T | BV9: W | BW9: Th | BX9: F | BY9: =BR9 -> S | BZ9: S | CA9: M | CB9: T | CC9: W | CD9: Th | CE9: F | CF9: S | CG9: S | CH9: M | CI9: T | CJ9: W | CK9: Th | CL9: F | CM9: S | CN9: S | CO9: M | CP9: T | CQ9: W | CR9: Th | CS9: F | CT9: S | CU9: S | CV9: M | CW9: T | CX9: W | CY9: Th | CZ9: F | DA9: S | DB9: S | DC9: M | DD9: T | DE9: W | DF9: Th | DG9: F | DH9: S | DI9: S | DJ9: M | DK9: T | DL9: W | DM9: Th | DN9: F | DO9: S | DP9: S | DQ9: M | DR9: T | DS9: W | DT9: Th | DU9: F | DV9: S | DW9: S | DX9: M | DY9: T | DZ9: W | EA9: Th | EB9: F | EC9: S | ED9: S | EE9: M | EF9: T | EG9: W | EH9: Th | EI9: F | EJ9: S | EK9: =ED9 -> S | EL9: M | EM9: T | EN9: W | EO9: Th | EP9: F | EQ9: S | ER9: S | ES9: M | ET9: T | EU9: W | EV9: Th | EW9: F | EX9: S | EY9: S | EZ9: M | FA9: T | FB9: W | FC9: Th | FD9: F | FE9: S | FF9: S | FG9: M | FH9: T | FI9: W | FJ9: Th | FK9: F | FL9: S | FM9: S | FN9: M | FO9: T | FP9: W | FQ9: Th | FR9: F | FS9: S | FT9: S | FU9: M | FV9: T | FW9: W | FX9: Th | FY9: F | FZ9: S | GA9: S | GB9: M | GC9: T | GD9: W | GE9: Th | GF9: F | GG9: S | GH9: S | GI9: M | GJ9: T | GK9: W | GL9: Th | GM9: F | GN9: S | GO9: S | GP9: M | GQ9: T | GR9: W | GS9: Th | GT9: F | GU9: S | GV9: S | GW9: =GP9 -> M | GX9: T | GY9: W | GZ9: Th | HA9: F | HB9: S | HC9: S | HD9: M | HE9: T | HF9: W | HG9: Th | HH9: F | HI9: S | HJ9: S | HK9: M | HL9: T | HM9: W | HN9: Th | HO9: F | HP9: S | HQ9: S | HR9: M | HS9: T | HT9: W | HU9: Th | HV9: F | HW9: S | HX9: S | HY9: M | HZ9: T | IA9: W | IB9: Th | IC9: F | ID9: S | IE9: S | IF9: M | IG9: T | IH9: W | II9: Th | IJ9: F | IK9: S | IL9: S | IM9: M | IN9: T | IO9: W | IP9: Th | IQ9: F | IR9: S | IS9: S | IT9: M | IU9: T | IV9: W | IW9: Th | IX9: F | IY9: S | IZ9: S | JA9: M | JB9: T | JC9: W | JD9: Th | JE9: F | JF9: S | JG9: S | JH9: M | JI9: =JB9 -> T | JJ9: W | JK9: Th | JL9: F | JM9: S | JN9: S | JO9: M | JP9: T | JQ9: W | JR9: Th | JS9: F | JT9: S | JU9: S | JV9: M | JW9: T | JX9: W | JY9: Th | JZ9: F | KA9: S | KB9: S | KC9: M | KD9: T | KE9: W | KF9: Th | KG9: F | KH9: S | KI9: S | KJ9: M | KK9: T | KL9: W | KM9: Th | KN9: F | KO9: S | KP9: S | KQ9: M | KR9: T | KS9: W | KT9: Th | KU9: F | KV9: S | KW9: S | KX9: M | KY9: T | KZ9: W | LA9: Th | LB9: F | LC9: S | LD9: S | LE9: M | LF9: T | LG9: W | LH9: Th | LI9: F | LJ9: S | LK9: S | LL9: M | LM9: T | LN9: W | LO9: Th | LP9: F | LQ9: S | LR9: S | LS9: M | LT9: T | LU9: =LN9 -> W | LV9: Th | LW9: F | LX9: S | LY9: S | LZ9: M | MA9: T | MB9: W | MC9: Th | MD9: F | ME9: S | MF9: S | MG9: M | MH9: T | MI9: W | MJ9: Th | MK9: F | ML9: S | MM9: S | MN9: M | MO9: T | MP9: W | MQ9: Th | MR9: F | MS9: S | MT9: S | MU9: M | MV9: T | MW9: W | MX9: Th | MY9: F | MZ9: S | NA9: S | NB9: M | NC9: T | ND9: W | NE9: Th | NF9: F | NG9: S | NH9: |
A11: Category | B11: Habit | C11: Target | D11: Actual | E11: Rem | F11: =DATE(F7,1,1) -> 2021-01-01 | G11: =F11+1 -> 2021-01-02 | H11: 2021-01-03 | I11: 2021-01-04 | J11: 2021-01-05 | K11: 2021-01-06 | L11: 2021-01-07 | M11: 2021-01-08 | N11: 2021-01-09 | O11: 2021-01-10 | P11: 2021-01-11 | Q11: 2021-01-12 | R11: 2021-01-13 | S11: 2021-01-14 | T11: 2021-01-15 | U11: 2021-01-16 | V11: 2021-01-17 | W11: 2021-01-18 | X11: 2021-01-19 | Y11: 2021-01-20 | Z11: 2021-01-21 | AA11: 2021-01-22 | AB11: 2021-01-23 | AC11: 2021-01-24 | AD11: 2021-01-25 | AE11: 2021-01-26 | AF11: 2021-01-27 | AG11: 2021-01-28 | AH11: 2021-01-29 | AI11: 2021-01-30 | AJ11: 2021-01-31 | AK11: 2021-02-01 | AL11: 2021-02-02 | AM11: 2021-02-03 | AN11: 2021-02-04 | AO11: 2021-02-05 | AP11: 2021-02-06 | AQ11: 2021-02-07 | AR11: 2021-02-08 | AS11: 2021-02-09 | AT11: 2021-02-10 | AU11: 2021-02-11 | AV11: 2021-02-12 | AW11: 2021-02-13 | AX11: 2021-02-14 | AY11: 2021-02-15 | AZ11: 2021-02-16 | BA11: 2021-02-17 | BB11: 2021-02-18 | BC11: 2021-02-19 | BD11: 2021-02-20 | BE11: 2021-02-21 | BF11: 2021-02-22 | BG11: 2021-02-23 | BH11: 2021-02-24 | BI11: 2021-02-25 | BJ11: 2021-02-26 | BK11: 2021-02-27 | BL11: 2021-02-28 | BM11: 2021-03-01 | BN11: 2021-03-02 | BO11: 2021-03-03 | BP11: 2021-03-04 | BQ11: 2021-03-05 | BR11: 2021-03-06 | BS11: =BR11+1 -> 2021-03-07 | BT11: 2021-03-08 | BU11: 2021-03-09 | BV11: 2021-03-10 | BW11: 2021-03-11 | BX11: 2021-03-12 | BY11: 2021-03-13 | BZ11: 2021-03-14 | CA11: 2021-03-15 | CB11: 2021-03-16 | CC11: 2021-03-17 | CD11: 2021-03-18 | CE11: 2021-03-19 | CF11: 2021-03-20 | CG11: 2021-03-21 | CH11: 2021-03-22 | CI11: 2021-03-23 | CJ11: 2021-03-24 | CK11: 2021-03-25 | CL11: 2021-03-26 | CM11: 2021-03-27 | CN11: 2021-03-28 | CO11: 2021-03-29 | CP11: 2021-03-30 | CQ11: 2021-03-31 | CR11: 2021-04-01 | CS11: 2021-04-02 | CT11: 2021-04-03 | CU11: 2021-04-04 | CV11: 2021-04-05 | CW11: 2021-04-06 | CX11: 2021-04-07 | CY11: 2021-04-08 | CZ11: 2021-04-09 | DA11: 2021-04-10 | DB11: 2021-04-11 | DC11: 2021-04-12 | DD11: 2021-04-13 | DE11: 2021-04-14 | DF11: 2021-04-15 | DG11: 2021-04-16 | DH11: 2021-04-17 | DI11: 2021-04-18 | DJ11: 2021-04-19 | DK11: 2021-04-20 | DL11: 2021-04-21 | DM11: 2021-04-22 | DN11: 2021-04-23 | DO11: 2021-04-24 | DP11: 2021-04-25 | DQ11: 2021-04-26 | DR11: 2021-04-27 | DS11: 2021-04-28 | DT11: 2021-04-29 | DU11: 2021-04-30 | DV11: 2021-05-01 | DW11: 2021-05-02 | DX11: 2021-05-03 | DY11: 2021-05-04 | DZ11: 2021-05-05 | EA11: 2021-05-06 | EB11: 2021-05-07 | EC11: 2021-05-08 | ED11: 2021-05-09 | EE11: =ED11+1 -> 2021-05-10 | EF11: 2021-05-11 | EG11: 2021-05-12 | EH11: 2021-05-13 | EI11: 2021-05-14 | EJ11: 2021-05-15 | EK11: 2021-05-16 | EL11: 2021-05-17 | EM11: 2021-05-18 | EN11: 2021-05-19 | EO11: 2021-05-20 | EP11: 2021-05-21 | EQ11: 2021-05-22 | ER11: 2021-05-23 | ES11: 2021-05-24 | ET11: 2021-05-25 | EU11: 2021-05-26 | EV11: 2021-05-27 | EW11: 2021-05-28 | EX11: 2021-05-29 | EY11: 2021-05-30 | EZ11: 2021-05-31 | FA11: 2021-06-01 | FB11: 2021-06-02 | FC11: 2021-06-03 | FD11: 2021-06-04 | FE11: 2021-06-05 | FF11: 2021-06-06 | FG11: 2021-06-07 | FH11: 2021-06-08 | FI11: 2021-06-09 | FJ11: 2021-06-10 | FK11: 2021-06-11 | FL11: 2021-06-12 | FM11: 2021-06-13 | FN11: 2021-06-14 | FO11: 2021-06-15 | FP11: 2021-06-16 | FQ11: 2021-06-17 | FR11: 2021-06-18 | FS11: 2021-06-19 | FT11: 2021-06-20 | FU11: 2021-06-21 | FV11: 2021-06-22 | FW11: 2021-06-23 | FX11: 2021-06-24 | FY11: 2021-06-25 | FZ11: 2021-06-26 | GA11: 2021-06-27 | GB11: 2021-06-28 | GC11: 2021-06-29 | GD11: 2021-06-30 | GE11: 2021-07-01 | GF11: 2021-07-02 | GG11: 2021-07-03 | GH11: 2021-07-04 | GI11: 2021-07-05 | GJ11: 2021-07-06 | GK11: 2021-07-07 | GL11: 2021-07-08 | GM11: 2021-07-09 | GN11: 2021-07-10 | GO11: 2021-07-11 | GP11: 2021-07-12 | GQ11: =GP11+1 -> 2021-07-13 | GR11: 2021-07-14 | GS11: 2021-07-15 | GT11: 2021-07-16 | GU11: 2021-07-17 | GV11: 2021-07-18 | GW11: 2021-07-19 | GX11: 2021-07-20 | GY11: 2021-07-21 | GZ11: 2021-07-22 | HA11: 2021-07-23 | HB11: 2021-07-24 | HC11: 2021-07-25 | HD11: 2021-07-26 | HE11: 2021-07-27 | HF11: 2021-07-28 | HG11: 2021-07-29 | HH11: 2021-07-30 | HI11: 2021-07-31 | HJ11: 2021-08-01 | HK11: 2021-08-02 | HL11: 2021-08-03 | HM11: 2021-08-04 | HN11: 2021-08-05 | HO11: 2021-08-06 | HP11: 2021-08-07 | HQ11: 2021-08-08 | HR11: 2021-08-09 | HS11: 2021-08-10 | HT11: 2021-08-11 | HU11: 2021-08-12 | HV11: 2021-08-13 | HW11: 2021-08-14 | HX11: 2021-08-15 | HY11: 2021-08-16 | HZ11: 2021-08-17 | IA11: 2021-08-18 | IB11: 2021-08-19 | IC11: 2021-08-20 | ID11: 2021-08-21 | IE11: 2021-08-22 | IF11: 2021-08-23 | IG11: 2021-08-24 | IH11: 2021-08-25 | II11: 2021-08-26 | IJ11: 2021-08-27 | IK11: 2021-08-28 | IL11: 2021-08-29 | IM11: 2021-08-30 | IN11: 2021-08-31 | IO11: 2021-09-01 | IP11: 2021-09-02 | IQ11: 2021-09-03 | IR11: 2021-09-04 | IS11: 2021-09-05 | IT11: 2021-09-06 | IU11: 2021-09-07 | IV11: 2021-09-08 | IW11: 2021-09-09 | IX11: 2021-09-10 | IY11: 2021-09-11 | IZ11: 2021-09-12 | JA11: 2021-09-13 | JB11: 2021-09-14 | JC11: =JB11+1 -> 2021-09-15 | JD11: 2021-09-16 | JE11: 2021-09-17 | JF11: 2021-09-18 | JG11: 2021-09-19 | JH11: 2021-09-20 | JI11: 2021-09-21 | JJ11: 2021-09-22 | JK11: 2021-09-23 | JL11: 2021-09-24 | JM11: 2021-09-25 | JN11: 2021-09-26 | JO11: 2021-09-27 | JP11: 2021-09-28 | JQ11: 2021-09-29 | JR11: 2021-09-30 | JS11: 2021-10-01 | JT11: 2021-10-02 | JU11: 2021-10-03 | JV11: 2021-10-04 | JW11: 2021-10-05 | JX11: 2021-10-06 | JY11: 2021-10-07 | JZ11: 2021-10-08 | KA11: 2021-10-09 | KB11: 2021-10-10 | KC11: 2021-10-11 | KD11: 2021-10-12 | KE11: 2021-10-13 | KF11: 2021-10-14 | KG11: 2021-10-15 | KH11: 2021-10-16 | KI11: 2021-10-17 | KJ11: 2021-10-18 | KK11: 2021-10-19 | KL11: 2021-10-20 | KM11: 2021-10-21 | KN11: 2021-10-22 | KO11: 2021-10-23 | KP11: 2021-10-24 | KQ11: 2021-10-25 | KR11: 2021-10-26 | KS11: 2021-10-27 | KT11: 2021-10-28 | KU11: 2021-10-29 | KV11: 2021-10-30 | KW11: 2021-10-31 | KX11: 2021-11-01 | KY11: 2021-11-02 | KZ11: 2021-11-03 | LA11: 2021-11-04 | LB11: 2021-11-05 | LC11: 2021-11-06 | LD11: 2021-11-07 | LE11: 2021-11-08 | LF11: 2021-11-09 | LG11: 2021-11-10 | LH11: 2021-11-11 | LI11: 2021-11-12 | LJ11: 2021-11-13 | LK11: 2021-11-14 | LL11: 2021-11-15 | LM11: 2021-11-16 | LN11: 2021-11-17 | LO11: =LN11+1 -> 2021-11-18 | LP11: 2021-11-19 | LQ11: 2021-11-20 | LR11: 2021-11-21 | LS11: 2021-11-22 | LT11: 2021-11-23 | LU11: 2021-11-24 | LV11: 2021-11-25 | LW11: 2021-11-26 | LX11: 2021-11-27 | LY11: 2021-11-28 | LZ11: 2021-11-29 | MA11: 2021-11-30 | MB11: 2021-12-01 | MC11: 2021-12-02 | MD11: 2021-12-03 | ME11: 2021-12-04 | MF11: 2021-12-05 | MG11: 2021-12-06 | MH11: 2021-12-07 | MI11: 2021-12-08 | MJ11: 2021-12-09 | MK11: 2021-12-10 | ML11: 2021-12-11 | MM11: 2021-12-12 | MN11: 2021-12-13 | MO11: 2021-12-14 | MP11: 2021-12-15 | MQ11: 2021-12-16 | MR11: 2021-12-17 | MS11: 2021-12-18 | MT11: 2021-12-19 | MU11: 2021-12-20 | MV11: 2021-12-21 | MW11: 2021-12-22 | MX11: 2021-12-23 | MY11: 2021-12-24 | MZ11: 2021-12-25 | NA11: 2021-12-26 | NB11: 2021-12-27 | NC11: 2021-12-28 | ND11: 2021-12-29 | NE11: 2021-12-30 | NF11: 2021-12-31 | NH11: |
A12: ---------- | B12: ----------------------------- | C12: -------- | D12: -------- | E12: -------- | F12: -- | G12: -- | H12: -- | I12: -- | J12: -- | K12: -- | L12: -- | M12: -- | N12: -- | O12: -- | P12: -- | Q12: -- | R12: -- | S12: -- | T12: -- | U12: -- | V12: -- | W12: -- | X12: -- | Y12: -- | Z12: -- | AA12: -- | AB12: -- | AC12: -- | AD12: -- | AE12: -- | AF12: -- | AG12: -- | AH12: -- | AI12: -- | AJ12: -- | AK12: -- | AL12: -- | AM12: -- | AN12: -- | AO12: -- | AP12: -- | AQ12: -- | AR12: -- | AS12: -- | AT12: -- | AU12: -- | AV12: -- | AW12: -- | AX12: -- | AY12: -- | AZ12: -- | BA12: -- | BB12: -- | BC12: -- | BD12: -- | BE12: -- | BF12: -- | BG12: -- | BH12: -- | BI12: -- | BJ12: -- | BK12: -- | BL12: -- | BM12: -- | BN12: -- | BO12: -- | BP12: -- | BQ12: -- | BR12: -- | BS12: -- | BT12: -- | BU12: -- | BV12: -- | BW12: -- | BX12: -- | BY12: -- | BZ12: -- | CA12: -- | CB12: -- | CC12: -- | CD12: -- | CE12: -- | CF12: -- | CG12: -- | CH12: -- | CI12: -- | CJ12: -- | CK12: -- | CL12: -- | CM12: -- | CN12: -- | CO12: -- | CP12: -- | CQ12: -- | CR12: -- | CS12: -- | CT12: -- | CU12: -- | CV12: -- | CW12: -- | CX12: -- | CY12: -- | CZ12: -- | DA12: -- | DB12: -- | DC12: -- | DD12: -- | DE12: -- | DF12: -- | DG12: -- | DH12: -- | DI12: -- | DJ12: -- | DK12: -- | DL12: -- | DM12: -- | DN12: -- | DO12: -- | DP12: -- | DQ12: -- | DR12: -- | DS12: -- | DT12: -- | DU12: -- | DV12: -- | DW12: -- | DX12: -- | DY12: -- | DZ12: -- | EA12: -- | EB12: -- | EC12: -- | ED12: -- | EE12: -- | EF12: -- | EG12: -- | EH12: -- | EI12: -- | EJ12: -- | EK12: -- | EL12: -- | EM12: -- | EN12: -- | EO12: -- | EP12: -- | EQ12: -- | ER12: -- | ES12: -- | ET12: -- | EU12: -- | EV12: -- | EW12: -- | EX12: -- | EY12: -- | EZ12: -- | FA12: -- | FB12: -- | FC12: -- | FD12: -- | FE12: -- | FF12: -- | FG12: -- | FH12: -- | FI12: -- | FJ12: -- | FK12: -- | FL12: -- | FM12: -- | FN12: -- | FO12: -- | FP12: -- | FQ12: -- | FR12: -- | FS12: -- | FT12: -- | FU12: -- | FV12: -- | FW12: -- | FX12: -- | FY12: -- | FZ12: -- | GA12: -- | GB12: -- | GC12: -- | GD12: -- | GE12: -- | GF12: -- | GG12: -- | GH12: -- | GI12: -- | GJ12: -- | GK12: -- | GL12: -- | GM12: -- | GN12: -- | GO12: -- | GP12: -- | GQ12: -- | GR12: -- | GS12: -- | GT12: -- | GU12: -- | GV12: -- | GW12: -- | GX12: -- | GY12: -- | GZ12: -- | HA12: -- | HB12: -- | HC12: -- | HD12: -- | HE12: -- | HF12: -- | HG12: -- | HH12: -- | HI12: -- | HJ12: -- | HK12: -- | HL12: -- | HM12: -- | HN12: -- | HO12: -- | HP12: -- | HQ12: -- | HR12: -- | HS12: -- | HT12: -- | HU12: -- | HV12: -- | HW12: -- | HX12: -- | HY12: -- | HZ12: -- | IA12: -- | IB12: -- | IC12: -- | ID12: -- | IE12: -- | IF12: -- | IG12: -- | IH12: -- | II12: -- | IJ12: -- | IK12: -- | IL12: -- | IM12: -- | IN12: -- | IO12: -- | IP12: -- | IQ12: -- | IR12: -- | IS12: -- | IT12: -- | IU12: -- | IV12: -- | IW12: -- | IX12: -- | IY12: -- | IZ12: -- | JA12: -- | JB12: -- | JC12: -- | JD12: -- | JE12: -- | JF12: -- | JG12: -- | JH12: -- | JI12: -- | JJ12: -- | JK12: -- | JL12: -- | JM12: -- | JN12: -- | JO12: -- | JP12: -- | JQ12: -- | JR12: -- | JS12: -- | JT12: -- | JU12: -- | JV12: -- | JW12: -- | JX12: -- | JY12: -- | JZ12: -- | KA12: -- | KB12: -- | KC12: -- | KD12: -- | KE12: -- | KF12: -- | KG12: -- | KH12: -- | KI12: -- | KJ12: -- | KK12: -- | KL12: -- | KM12: -- | KN12: -- | KO12: -- | KP12: -- | KQ12: -- | KR12: -- | KS12: -- | KT12: -- | KU12: -- | KV12: -- | KW12: -- | KX12: -- | KY12: -- | KZ12: -- | LA12: -- | LB12: -- | LC12: -- | LD12: -- | LE12: -- | LF12: -- | LG12: -- | LH12: -- | LI12: -- | LJ12: -- | LK12: -- | LL12: -- | LM12: -- | LN12: -- | LO12: -- | LP12: -- | LQ12: -- | LR12: -- | LS12: -- | LT12: -- | LU12: -- | LV12: -- | LW12: -- | LX12: -- | LY12: -- | LZ12: -- | MA12: -- | MB12: -- | MC12: -- | MD12: -- | ME12: -- | MF12: -- | MG12: -- | MH12: -- | MI12: -- | MJ12: -- | MK12: -- | ML12: -- | MM12: -- | MN12: -- | MO12: -- | MP12: -- | MQ12: -- | MR12: -- | MS12: -- | MT12: -- | MU12: -- | MV12: -- | MW12: -- | MX12: -- | MY12: -- | MZ12: -- | NA12: -- | NB12: -- | NC12: -- | ND12: -- | NE12: -- | NF12: -- | NG12: -- | NH12: |
A13: Sleep | B13: Sleep (hours, last night) | C13: =8*365 -> 2920 | D13: =SUM(F13:NH13) -> 50 | E13: =C13-D13 -> 2870 | F13: 7 | G13: 6 | H13: 7.5 | I13: 7.5 | J13: 8 | K13: 6.5 | L13: 7.5 | NH13: |
A14: ---------- | B14: ----------------------------- | C14: -------- | D14: -------- | E14: -------- | F14: -- | G14: -- | H14: -- | I14: -- | J14: -- | K14: -- | L14: -- | M14: -- | N14: -- | O14: -- | P14: -- | Q14: -- | R14: -- | S14: -- | T14: -- | U14: -- | V14: -- | W14: -- | X14: -- | Y14: -- | Z14: -- | AA14: -- | AB14: -- | AC14: -- | AD14: -- | AE14: -- | AF14: -- | AG14: -- | AH14: -- | AI14: -- | AJ14: -- | AK14: -- | AL14: -- | AM14: -- | AN14: -- | AO14: -- | AP14: -- | AQ14: -- | AR14: -- | AS14: -- | AT14: -- | AU14: -- | AV14: -- | AW14: -- | AX14: -- | AY14: -- | AZ14: -- | BA14: -- | BB14: -- | BC14: -- | BD14: -- | BE14: -- | BF14: -- | BG14: -- | BH14: -- | BI14: -- | BJ14: -- | BK14: -- | BL14: -- | BM14: -- | BN14: -- | BO14: -- | BP14: -- | BQ14: -- | BR14: -- | BS14: -- | BT14: -- | BU14: -- | BV14: -- | BW14: -- | BX14: -- | BY14: -- | BZ14: -- | CA14: -- | CB14: -- | CC14: -- | CD14: -- | CE14: -- | CF14: -- | CG14: -- | CH14: -- | CI14: -- | CJ14: -- | CK14: -- | CL14: -- | CM14: -- | CN14: -- | CO14: -- | CP14: -- | CQ14: -- | CR14: -- | CS14: -- | CT14: -- | CU14: -- | CV14: -- | CW14: -- | CX14: -- | CY14: -- | CZ14: -- | DA14: -- | DB14: -- | DC14: -- | DD14: -- | DE14: -- | DF14: -- | DG14: -- | DH14: -- | DI14: -- | DJ14: -- | DK14: -- | DL14: -- | DM14: -- | DN14: -- | DO14: -- | DP14: -- | DQ14: -- | DR14: -- | DS14: -- | DT14: -- | DU14: -- | DV14: -- | DW14: -- | DX14: -- | DY14: -- | DZ14: -- | EA14: -- | EB14: -- | EC14: -- | ED14: -- | EE14: -- | EF14: -- | EG14: -- | EH14: -- | EI14: -- | EJ14: -- | EK14: -- | EL14: -- | EM14: -- | EN14: -- | EO14: -- | EP14: -- | EQ14: -- | ER14: -- | ES14: -- | ET14: -- | EU14: -- | EV14: -- | EW14: -- | EX14: -- | EY14: -- | EZ14: -- | FA14: -- | FB14: -- | FC14: -- | FD14: -- | FE14: -- | FF14: -- | FG14: -- | FH14: -- | FI14: -- | FJ14: -- | FK14: -- | FL14: -- | FM14: -- | FN14: -- | FO14: -- | FP14: -- | FQ14: -- | FR14: -- | FS14: -- | FT14: -- | FU14: -- | FV14: -- | FW14: -- | FX14: -- | FY14: -- | FZ14: -- | GA14: -- | GB14: -- | GC14: -- | GD14: -- | GE14: -- | GF14: -- | GG14: -- | GH14: -- | GI14: -- | GJ14: -- | GK14: -- | GL14: -- | GM14: -- | GN14: -- | GO14: -- | GP14: -- | GQ14: -- | GR14: -- | GS14: -- | GT14: -- | GU14: -- | GV14: -- | GW14: -- | GX14: -- | GY14: -- | GZ14: -- | HA14: -- | HB14: -- | HC14: -- | HD14: -- | HE14: -- | HF14: -- | HG14: -- | HH14: -- | HI14: -- | HJ14: -- | HK14: -- | HL14: -- | HM14: -- | HN14: -- | HO14: -- | HP14: -- | HQ14: -- | HR14: -- | HS14: -- | HT14: -- | HU14: -- | HV14: -- | HW14: -- | HX14: -- | HY14: -- | HZ14: -- | IA14: -- | IB14: -- | IC14: -- | ID14: -- | IE14: -- | IF14: -- | IG14: -- | IH14: -- | II14: -- | IJ14: -- | IK14: -- | IL14: -- | IM14: -- | IN14: -- | IO14: -- | IP14: -- | IQ14: -- | IR14: -- | IS14: -- | IT14: -- | IU14: -- | IV14: -- | IW14: -- | IX14: -- | IY14: -- | IZ14: -- | JA14: -- | JB14: -- | JC14: -- | JD14: -- | JE14: -- | JF14: -- | JG14: -- | JH14: -- | JI14: -- | JJ14: -- | JK14: -- | JL14: -- | JM14: -- | JN14: -- | JO14: -- | JP14: -- | JQ14: -- | JR14: -- | JS14: -- | JT14: -- | JU14: -- | JV14: -- | JW14: -- | JX14: -- | JY14: -- | JZ14: -- | KA14: -- | KB14: -- | KC14: -- | KD14: -- | KE14: -- | KF14: -- | KG14: -- | KH14: -- | KI14: -- | KJ14: -- | KK14: -- | KL14: -- | KM14: -- | KN14: -- | KO14: -- | KP14: -- | KQ14: -- | KR14: -- | KS14: -- | KT14: -- | KU14: -- | KV14: -- | KW14: -- | KX14: -- | KY14: -- | KZ14: -- | LA14: -- | LB14: -- | LC14: -- | LD14: -- | LE14: -- | LF14: -- | LG14: -- | LH14: -- | LI14: -- | LJ14: -- | LK14: -- | LL14: -- | LM14: -- | LN14: -- | LO14: -- | LP14: -- | LQ14: -- | LR14: -- | LS14: -- | LT14: -- | LU14: -- | LV14: -- | LW14: -- | LX14: -- | LY14: -- | LZ14: -- | MA14: -- | MB14: -- | MC14: -- | MD14: -- | ME14: -- | MF14: -- | MG14: -- | MH14: -- | MI14: -- | MJ14: -- | MK14: -- | ML14: -- | MM14: -- | MN14: -- | MO14: -- | MP14: -- | MQ14: -- | MR14: -- | MS14: -- | MT14: -- | MU14: -- | MV14: -- | MW14: -- | MX14: -- | MY14: -- | MZ14: -- | NA14: -- | NB14: -- | NC14: -- | ND14: -- | NE14: -- | NF14: -- | NG14: -- | NH14: |
A15: Focus | B15: Plan/Journal | C15: 100 | D15: =SUM(F15:NH15)/60 -> 0.5 | E15: =C15-D15 -> 99.5 | I15: 30 | NH15: |
A16: Focus | B16: Meditation | C16: 100 | D16: =SUM(F16:NH16)/60 -> 0.3333333333 | E16: =C16-D16 -> 99.66666667 | J16: 10 | K16: 10 | NH16: |
A17: Focus | B17: Tai Chi | C17: 100 | D17: =SUM(F17:NH17)/60 -> 0.1666666667 | E17: =C17-D17 -> 99.83333333 | I17: 5 | K17: 5 | NH17: |
A18: Focus | B18: Yoga / Stretching | C18: 100 | D18: =SUM(F18:NH18)/60 -> 0 | E18: =C18-D18 -> 100 | NH18: |
A19: ---------- | B19: ----------------------------- | C19: -------- | D19: -------- | E19: -------- | F19: -- | G19: -- | H19: -- | I19: -- | J19: -- | K19: -- | L19: -- | M19: -- | N19: -- | O19: -- | P19: -- | Q19: -- | R19: -- | S19: -- | T19: -- | U19: -- | V19: -- | W19: -- | X19: -- | Y19: -- | Z19: -- | AA19: -- | AB19: -- | AC19: -- | AD19: -- | AE19: -- | AF19: -- | AG19: -- | AH19: -- | AI19: -- | AJ19: -- | AK19: -- | AL19: -- | AM19: -- | AN19: -- | AO19: -- | AP19: -- | AQ19: -- | AR19: -- | AS19: -- | AT19: -- | AU19: -- | AV19: -- | AW19: -- | AX19: -- | AY19: -- | AZ19: -- | BA19: -- | BB19: -- | BC19: -- | BD19: -- | BE19: -- | BF19: -- | BG19: -- | BH19: -- | BI19: -- | BJ19: -- | BK19: -- | BL19: -- | BM19: -- | BN19: -- | BO19: -- | BP19: -- | BQ19: -- | BR19: -- | BS19: -- | BT19: -- | BU19: -- | BV19: -- | BW19: -- | BX19: -- | BY19: -- | BZ19: -- | CA19: -- | CB19: -- | CC19: -- | CD19: -- | CE19: -- | CF19: -- | CG19: -- | CH19: -- | CI19: -- | CJ19: -- | CK19: -- | CL19: -- | CM19: -- | CN19: -- | CO19: -- | CP19: -- | CQ19: -- | CR19: -- | CS19: -- | CT19: -- | CU19: -- | CV19: -- | CW19: -- | CX19: -- | CY19: -- | CZ19: -- | DA19: -- | DB19: -- | DC19: -- | DD19: -- | DE19: -- | DF19: -- | DG19: -- | DH19: -- | DI19: -- | DJ19: -- | DK19: -- | DL19: -- | DM19: -- | DN19: -- | DO19: -- | DP19: -- | DQ19: -- | DR19: -- | DS19: -- | DT19: -- | DU19: -- | DV19: -- | DW19: -- | DX19: -- | DY19: -- | DZ19: -- | EA19: -- | EB19: -- | EC19: -- | ED19: -- | EE19: -- | EF19: -- | EG19: -- | EH19: -- | EI19: -- | EJ19: -- | EK19: -- | EL19: -- | EM19: -- | EN19: -- | EO19: -- | EP19: -- | EQ19: -- | ER19: -- | ES19: -- | ET19: -- | EU19: -- | EV19: -- | EW19: -- | EX19: -- | EY19: -- | EZ19: -- | FA19: -- | FB19: -- | FC19: -- | FD19: -- | FE19: -- | FF19: -- | FG19: -- | FH19: -- | FI19: -- | FJ19: -- | FK19: -- | FL19: -- | FM19: -- | FN19: -- | FO19: -- | FP19: -- | FQ19: -- | FR19: -- | FS19: -- | FT19: -- | FU19: -- | FV19: -- | FW19: -- | FX19: -- | FY19: -- | FZ19: -- | GA19: -- | GB19: -- | GC19: -- | GD19: -- | GE19: -- | GF19: -- | GG19: -- | GH19: -- | GI19: -- | GJ19: -- | GK19: -- | GL19: -- | GM19: -- | GN19: -- | GO19: -- | GP19: -- | GQ19: -- | GR19: -- | GS19: -- | GT19: -- | GU19: -- | GV19: -- | GW19: -- | GX19: -- | GY19: -- | GZ19: -- | HA19: -- | HB19: -- | HC19: -- | HD19: -- | HE19: -- | HF19: -- | HG19: -- | HH19: -- | HI19: -- | HJ19: -- | HK19: -- | HL19: -- | HM19: -- | HN19: -- | HO19: -- | HP19: -- | HQ19: -- | HR19: -- | HS19: -- | HT19: -- | HU19: -- | HV19: -- | HW19: -- | HX19: -- | HY19: -- | HZ19: -- | IA19: -- | IB19: -- | IC19: -- | ID19: -- | IE19: -- | IF19: -- | IG19: -- | IH19: -- | II19: -- | IJ19: -- | IK19: -- | IL19: -- | IM19: -- | IN19: -- | IO19: -- | IP19: -- | IQ19: -- | IR19: -- | IS19: -- | IT19: -- | IU19: -- | IV19: -- | IW19: -- | IX19: -- | IY19: -- | IZ19: -- | JA19: -- | JB19: -- | JC19: -- | JD19: -- | JE19: -- | JF19: -- | JG19: -- | JH19: -- | JI19: -- | JJ19: -- | JK19: -- | JL19: -- | JM19: -- | JN19: -- | JO19: -- | JP19: -- | JQ19: -- | JR19: -- | JS19: -- | JT19: -- | JU19: -- | JV19: -- | JW19: -- | JX19: -- | JY19: -- | JZ19: -- | KA19: -- | KB19: -- | KC19: -- | KD19: -- | KE19: -- | KF19: -- | KG19: -- | KH19: -- | KI19: -- | KJ19: -- | KK19: -- | KL19: -- | KM19: -- | KN19: -- | KO19: -- | KP19: -- | KQ19: -- | KR19: -- | KS19: -- | KT19: -- | KU19: -- | KV19: -- | KW19: -- | KX19: -- | KY19: -- | KZ19: -- | LA19: -- | LB19: -- | LC19: -- | LD19: -- | LE19: -- | LF19: -- | LG19: -- | LH19: -- | LI19: -- | LJ19: -- | LK19: -- | LL19: -- | LM19: -- | LN19: -- | LO19: -- | LP19: -- | LQ19: -- | LR19: -- | LS19: -- | LT19: -- | LU19: -- | LV19: -- | LW19: -- | LX19: -- | LY19: -- | LZ19: -- | MA19: -- | MB19: -- | MC19: -- | MD19: -- | ME19: -- | MF19: -- | MG19: -- | MH19: -- | MI19: -- | MJ19: -- | MK19: -- | ML19: -- | MM19: -- | MN19: -- | MO19: -- | MP19: -- | MQ19: -- | MR19: -- | MS19: -- | MT19: -- | MU19: -- | MV19: -- | MW19: -- | MX19: -- | MY19: -- | MZ19: -- | NA19: -- | NB19: -- | NC19: -- | ND19: -- | NE19: -- | NF19: -- | NG19: -- | NH19: |
A20: Strength | B20: Core (mornings) | C20: 100 | D20: =SUM(F20:NH20)/60 -> 1 | E20: =C20-D20 -> 99 | F20: 5 | G20: 10 | H20: 5 | I20: 10 | J20: 10 | K20: 10 | L20: 10 | NH20: |
A21: Strength | B21: Lift | C21: 100 | D21: =SUM(F21:NH21)/60 -> 1 | E21: =C21-D21 -> 99 | H21: 30 | L21: 30 | NH21: |
A22: Cardio | B22: Jog / XC ski | C22: 100 | D22: =SUM(F22:NH22)/60 -> 0.6666666667 | E22: =C22-D22 -> 99.33333333 | F22: 20 | I22: 20 | NH22: |
A23: Cardio | B23: Swim | C23: 100 | D23: =SUM(F23:NH23)/60 -> 0 | E23: =C23-D23 -> 100 | NH23: |
A24: Cardio | B24: Walk | C24: 100 | D24: =SUM(F24:NH24)/60 -> 1 | E24: =C24-D24 -> 99 | H24: 60 | NH24: |
A25: ---------- | B25: ----------------------------- | C25: -------- | D25: -------- | E25: -------- | F25: -- | G25: -- | H25: -- | I25: -- | J25: -- | K25: -- | L25: -- | M25: -- | N25: -- | O25: -- | P25: -- | Q25: -- | R25: -- | S25: -- | T25: -- | U25: -- | V25: -- | W25: -- | X25: -- | Y25: -- | Z25: -- | AA25: -- | AB25: -- | AC25: -- | AD25: -- | AE25: -- | AF25: -- | AG25: -- | AH25: -- | AI25: -- | AJ25: -- | AK25: -- | AL25: -- | AM25: -- | AN25: -- | AO25: -- | AP25: -- | AQ25: -- | AR25: -- | AS25: -- | AT25: -- | AU25: -- | AV25: -- | AW25: -- | AX25: -- | AY25: -- | AZ25: -- | BA25: -- | BB25: -- | BC25: -- | BD25: -- | BE25: -- | BF25: -- | BG25: -- | BH25: -- | BI25: -- | BJ25: -- | BK25: -- | BL25: -- | BM25: -- | BN25: -- | BO25: -- | BP25: -- | BQ25: -- | BR25: -- | BS25: -- | BT25: -- | BU25: -- | BV25: -- | BW25: -- | BX25: -- | BY25: -- | BZ25: -- | CA25: -- | CB25: -- | CC25: -- | CD25: -- | CE25: -- | CF25: -- | CG25: -- | CH25: -- | CI25: -- | CJ25: -- | CK25: -- | CL25: -- | CM25: -- | CN25: -- | CO25: -- | CP25: -- | CQ25: -- | CR25: -- | CS25: -- | CT25: -- | CU25: -- | CV25: -- | CW25: -- | CX25: -- | CY25: -- | CZ25: -- | DA25: -- | DB25: -- | DC25: -- | DD25: -- | DE25: -- | DF25: -- | DG25: -- | DH25: -- | DI25: -- | DJ25: -- | DK25: -- | DL25: -- | DM25: -- | DN25: -- | DO25: -- | DP25: -- | DQ25: -- | DR25: -- | DS25: -- | DT25: -- | DU25: -- | DV25: -- | DW25: -- | DX25: -- | DY25: -- | DZ25: -- | EA25: -- | EB25: -- | EC25: -- | ED25: -- | EE25: -- | EF25: -- | EG25: -- | EH25: -- | EI25: -- | EJ25: -- | EK25: -- | EL25: -- | EM25: -- | EN25: -- | EO25: -- | EP25: -- | EQ25: -- | ER25: -- | ES25: -- | ET25: -- | EU25: -- | EV25: -- | EW25: -- | EX25: -- | EY25: -- | EZ25: -- | FA25: -- | FB25: -- | FC25: -- | FD25: -- | FE25: -- | FF25: -- | FG25: -- | FH25: -- | FI25: -- | FJ25: -- | FK25: -- | FL25: -- | FM25: -- | FN25: -- | FO25: -- | FP25: -- | FQ25: -- | FR25: -- | FS25: -- | FT25: -- | FU25: -- | FV25: -- | FW25: -- | FX25: -- | FY25: -- | FZ25: -- | GA25: -- | GB25: -- | GC25: -- | GD25: -- | GE25: -- | GF25: -- | GG25: -- | GH25: -- | GI25: -- | GJ25: -- | GK25: -- | GL25: -- | GM25: -- | GN25: -- | GO25: -- | GP25: -- | GQ25: -- | GR25: -- | GS25: -- | GT25: -- | GU25: -- | GV25: -- | GW25: -- | GX25: -- | GY25: -- | GZ25: -- | HA25: -- | HB25: -- | HC25: -- | HD25: -- | HE25: -- | HF25: -- | HG25: -- | HH25: -- | HI25: -- | HJ25: -- | HK25: -- | HL25: -- | HM25: -- | HN25: -- | HO25: -- | HP25: -- | HQ25: -- | HR25: -- | HS25: -- | HT25: -- | HU25: -- | HV25: -- | HW25: -- | HX25: -- | HY25: -- | HZ25: -- | IA25: -- | IB25: -- | IC25: -- | ID25: -- | IE25: -- | IF25: -- | IG25: -- | IH25: -- | II25: -- | IJ25: -- | IK25: -- | IL25: -- | IM25: -- | IN25: -- | IO25: -- | IP25: -- | IQ25: -- | IR25: -- | IS25: -- | IT25: -- | IU25: -- | IV25: -- | IW25: -- | IX25: -- | IY25: -- | IZ25: -- | JA25: -- | JB25: -- | JC25: -- | JD25: -- | JE25: -- | JF25: -- | JG25: -- | JH25: -- | JI25: -- | JJ25: -- | JK25: -- | JL25: -- | JM25: -- | JN25: -- | JO25: -- | JP25: -- | JQ25: -- | JR25: -- | JS25: -- | JT25: -- | JU25: -- | JV25: -- | JW25: -- | JX25: -- | JY25: -- | JZ25: -- | KA25: -- | KB25: -- | KC25: -- | KD25: -- | KE25: -- | KF25: -- | KG25: -- | KH25: -- | KI25: -- | KJ25: -- | KK25: -- | KL25: -- | KM25: -- | KN25: -- | KO25: -- | KP25: -- | KQ25: -- | KR25: -- | KS25: -- | KT25: -- | KU25: -- | KV25: -- | KW25: -- | KX25: -- | KY25: -- | KZ25: -- | LA25: -- | LB25: -- | LC25: -- | LD25: -- | LE25: -- | LF25: -- | LG25: -- | LH25: -- | LI25: -- | LJ25: -- | LK25: -- | LL25: -- | LM25: -- | LN25: -- | LO25: -- | LP25: -- | LQ25: -- | LR25: -- | LS25: -- | LT25: -- | LU25: -- | LV25: -- | LW25: -- | LX25: -- | LY25: -- | LZ25: -- | MA25: -- | MB25: -- | MC25: -- | MD25: -- | ME25: -- | MF25: -- | MG25: -- | MH25: -- | MI25: -- | MJ25: -- | MK25: -- | ML25: -- | MM25: -- | MN25: -- | MO25: -- | MP25: -- | MQ25: -- | MR25: -- | MS25: -- | MT25: -- | MU25: -- | MV25: -- | MW25: -- | MX25: -- | MY25: -- | MZ25: -- | NA25: -- | NB25: -- | NC25: -- | ND25: -- | NE25: -- | NF25: -- | NG25: -- | NH25: |
A26: Arts | B26: Instrument 1 | C26: 100 | D26: =SUM(F26:NH26)/60 -> 1 | E26: =C26-D26 -> 99 | F26: 10 | H26: 10 | I26: 15 | J26: 15 | L26: 10 | NH26: |
A27: Arts | B27: Language 1 | C27: 100 | D27: =SUM(F27:NH27)/60 -> 0 | E27: =C27-D27 -> 100 | NH27: |
A28: Arts | B28: Reading | C28: 100 | D28: =SUM(F28:NH28)/60 -> 1.166666667 | E28: =C28-D28 -> 98.83333333 | F28: 10 | G28: 5 | I28: 15 | J28: 15 | K28: 10 | L28: 15 | NH28: |
NH30: |
NH31: |
A33: - | B33: - | C33: - | D33: - | E33: - | F33: - | G33: - | H33: - | I33: - | J33: - | K33: - | L33: - | M33: - | N33: - | O33: - | P33: - | Q33: - | R33: - | S33: - | T33: - | U33: - | V33: - | W33: - | X33: - | Y33: - | Z33: - | AA33: - | AB33: - | AC33: - | AD33: - | AE33: - | AF33: - | AG33: - | AH33: - | AI33: - | AJ33: - | AK33: - | AL33: - | AM33: - | AN33: - | AO33: - | AP33: - | AQ33: - | AR33: - | AS33: - | AT33: - | AU33: - | AV33: - | AW33: - | AX33: - | AY33: - | AZ33: - | BA33: - | BB33: - | BC33: - | BD33: - | BE33: - | BF33: - | BG33: - | BH33: - | BI33: - | BJ33: - | BK33: - | BL33: - | BM33: - | BN33: - | BO33: - | BP33: - | BQ33: - | BR33: - | BS33: - | BT33: - | BU33: - | BV33: - | BW33: - | BX33: - | BY33: - | BZ33: - | CA33: - | CB33: - | CC33: - | CD33: - | CE33: - | CF33: - | CG33: - | CH33: - | CI33: - | CJ33: - | CK33: - | CL33: - | CM33: - | CN33: - | CO33: - | CP33: - | CQ33: - | CR33: - | CS33: - | CT33: - | CU33: - | CV33: - | CW33: - | CX33: - | CY33: - | CZ33: - | DA33: - | DB33: - | DC33: - | DD33: - | DE33: - | DF33: - | DG33: - | DH33: - | DI33: - | DJ33: - | DK33: - | DL33: - | DM33: - | DN33: - | DO33: - | DP33: - | DQ33: - | DR33: - | DS33: - | DT33: - | DU33: - | DV33: - | DW33: - | DX33: - | DY33: - | DZ33: - | EA33: - | EB33: - | EC33: - | ED33: - | EE33: - | EF33: - | EG33: - | EH33: - | EI33: - | EJ33: - | EK33: - | EL33: - | EM33: - | EN33: - | EO33: - | EP33: - | EQ33: - | ER33: - | ES33: - | ET33: - | EU33: - | EV33: - | EW33: - | EX33: - | EY33: - | EZ33: - | FA33: - | FB33: - | FC33: - | FD33: - | FE33: - | FF33: - | FG33: - | FH33: - | FI33: - | FJ33: - | FK33: - | FL33: - | FM33: - | FN33: - | FO33: - | FP33: - | FQ33: - | FR33: - | FS33: - | FT33: - | FU33: - | FV33: - | FW33: - | FX33: - | FY33: - | FZ33: - | GA33: - | GB33: - | GC33: - | GD33: - | GE33: - | GF33: - | GG33: - | GH33: - | GI33: - | GJ33: - | GK33: - | GL33: - | GM33: - | GN33: - | GO33: - | GP33: - | GQ33: - | GR33: - | GS33: - | GT33: - | GU33: - | GV33: - | GW33: - | GX33: - | GY33: - | GZ33: - | HA33: - | HB33: - | HC33: - | HD33: - | HE33: - | HF33: - | HG33: - | HH33: - | HI33: - | HJ33: - | HK33: - | HL33: - | HM33: - | HN33: - | HO33: - | HP33: - | HQ33: - | HR33: - | HS33: - | HT33: - | HU33: - | HV33: - | HW33: - | HX33: - | HY33: - | HZ33: - | IA33: - | IB33: - | IC33: - | ID33: - | IE33: - | IF33: - | IG33: - | IH33: - | II33: - | IJ33: - | IK33: - | IL33: - | IM33: - | IN33: - | IO33: - | IP33: - | IQ33: - | IR33: - | IS33: - | IT33: - | IU33: - | IV33: - | IW33: - | IX33: - | IY33: - | IZ33: - | JA33: - | JB33: - | JC33: - | JD33: - | JE33: - | JF33: - | JG33: - | JH33: - | JI33: - | JJ33: - | JK33: - | JL33: - | JM33: - | JN33: - | JO33: - | JP33: - | JQ33: - | JR33: - | JS33: - | JT33: - | JU33: - | JV33: - | JW33: - | JX33: - | JY33: - | JZ33: - | KA33: - | KB33: - | KC33: - | KD33: - | KE33: - | KF33: - | KG33: - | KH33: - | KI33: - | KJ33: - | KK33: - | KL33: - | KM33: - | KN33: - | KO33: - | KP33: - | KQ33: - | KR33: - | KS33: - | KT33: - | KU33: - | KV33: - | KW33: - | KX33: - | KY33: - | KZ33: - | LA33: - | LB33: - | LC33: - | LD33: - | LE33: - | LF33: - | LG33: - | LH33: - | LI33: - | LJ33: - | LK33: - | LL33: - | LM33: - | LN33: - | LO33: - | LP33: - | LQ33: - | LR33: - | LS33: - | LT33: - | LU33: - | LV33: - | LW33: - | LX33: - | LY33: - | LZ33: - | MA33: - | MB33: - | MC33: - | MD33: - | ME33: - | MF33: - | MG33: - | MH33: - | MI33: - | MJ33: - | MK33: - | ML33: - | MM33: - | MN33: - | MO33: - | MP33: - | MQ33: - | MR33: - | MS33: - | MT33: - | MU33: - | MV33: - | MW33: - | MX33: - | MY33: - | MZ33: - | NA33: - | NB33: - | NC33: - | ND33: - | NE33: - | NF33: - | NG33: - | NH33: -
B34: Hours per category | D34: Actual
B35: Sleep | D35: =D13 -> 50 | F35: =F13 -> 7 | G35: 6 | H35: 7.5 | I35: 7.5 | J35: 8 | K35: 6.5 | L35: 7.5 | M35: =M13 -> 0 | N35: 0 | O35: 0 | P35: 0 | Q35: 0 | R35: =R13 -> 0 | S35: 0 | T35: 0 | U35: 0 | V35: 0 | W35: 0 | X35: 0 | Y35: 0 | Z35: 0 | AA35: 0 | AB35: 0 | AC35: 0 | AD35: 0 | AE35: 0 | AF35: 0 | AG35: 0 | AH35: 0 | AI35: 0 | AJ35: 0 | AK35: 0 | AL35: 0 | AM35: 0 | AN35: 0 | AO35: 0 | AP35: 0 | AQ35: 0 | AR35: 0 | AS35: 0 | AT35: 0 | AU35: 0 | AV35: 0 | AW35: 0 | AX35: 0 | AY35: 0 | AZ35: 0 | BA35: 0 | BB35: 0 | BC35: 0 | BD35: 0 | BE35: 0 | BF35: 0 | BG35: 0 | BH35: 0 | BI35: 0 | BJ35: 0 | BK35: 0 | BL35: 0 | BM35: 0 | BN35: 0 | BO35: 0 | BP35: 0 | BQ35: 0 | BR35: 0 | BS35: 0 | BT35: 0 | BU35: 0 | BV35: 0 | BW35: 0 | BX35: 0 | BY35: 0 | BZ35: 0 | CA35: 0 | CB35: 0 | CC35: 0 | CD35: =CD13 -> 0 | CE35: 0 | CF35: 0 | CG35: 0 | CH35: 0 | CI35: 0 | CJ35: 0 | CK35: 0 | CL35: 0 | CM35: 0 | CN35: 0 | CO35: 0 | CP35: 0 | CQ35: 0 | CR35: 0 | CS35: 0 | CT35: 0 | CU35: 0 | CV35: 0 | CW35: 0 | CX35: 0 | CY35: 0 | CZ35: 0 | DA35: 0 | DB35: 0 | DC35: 0 | DD35: 0 | DE35: 0 | DF35: 0 | DG35: 0 | DH35: 0 | DI35: 0 | DJ35: 0 | DK35: 0 | DL35: 0 | DM35: 0 | DN35: 0 | DO35: 0 | DP35: 0 | DQ35: 0 | DR35: 0 | DS35: 0 | DT35: 0 | DU35: 0 | DV35: 0 | DW35: 0 | DX35: 0 | DY35: 0 | DZ35: 0 | EA35: 0 | EB35: 0 | EC35: 0 | ED35: 0 | EE35: 0 | EF35: 0 | EG35: 0 | EH35: 0 | EI35: 0 | EJ35: 0 | EK35: 0 | EL35: 0 | EM35: 0 | EN35: 0 | EO35: 0 | EP35: =EP13 -> 0 | EQ35: 0 | ER35: 0 | ES35: 0 | ET35: 0 | EU35: 0 | EV35: 0 | EW35: 0 | EX35: 0 | EY35: 0 | EZ35: 0 | FA35: 0 | FB35: 0 | FC35: 0 | FD35: 0 | FE35: 0 | FF35: 0 | FG35: 0 | FH35: 0 | FI35: 0 | FJ35: 0 | FK35: 0 | FL35: 0 | FM35: 0 | FN35: 0 | FO35: 0 | FP35: 0 | FQ35: 0 | FR35: 0 | FS35: 0 | FT35: 0 | FU35: 0 | FV35: 0 | FW35: 0 | FX35: 0 | FY35: 0 | FZ35: 0 | GA35: 0 | GB35: 0 | GC35: 0 | GD35: 0 | GE35: 0 | GF35: 0 | GG35: 0 | GH35: 0 | GI35: 0 | GJ35: 0 | GK35: 0 | GL35: 0 | GM35: 0 | GN35: 0 | GO35: 0 | GP35: 0 | GQ35: 0 | GR35: 0 | GS35: 0 | GT35: 0 | GU35: 0 | GV35: 0 | GW35: 0 | GX35: 0 | GY35: 0 | GZ35: 0 | HA35: 0 | HB35: =HB13 -> 0 | HC35: 0 | HD35: 0 | HE35: 0 | HF35: 0 | HG35: 0 | HH35: 0 | HI35: 0 | HJ35: 0 | HK35: 0 | HL35: 0 | HM35: 0 | HN35: 0 | HO35: 0 | HP35: 0 | HQ35: 0 | HR35: 0 | HS35: 0 | HT35: 0 | HU35: 0 | HV35: 0 | HW35: 0 | HX35: 0 | HY35: 0 | HZ35: 0 | IA35: 0 | IB35: 0 | IC35: 0 | ID35: 0 | IE35: 0 | IF35: 0 | IG35: 0 | IH35: 0 | II35: 0 | IJ35: 0 | IK35: 0 | IL35: 0 | IM35: 0 | IN35: 0 | IO35: 0 | IP35: 0 | IQ35: 0 | IR35: 0 | IS35: 0 | IT35: 0 | IU35: 0 | IV35: 0 | IW35: 0 | IX35: 0 | IY35: 0 | IZ35: 0 | JA35: 0 | JB35: 0 | JC35: 0 | JD35: 0 | JE35: 0 | JF35: 0 | JG35: 0 | JH35: 0 | JI35: 0 | JJ35: 0 | JK35: 0 | JL35: 0 | JM35: 0 | JN35: =JN13 -> 0 | JO35: 0 | JP35: 0 | JQ35: 0 | JR35: 0 | JS35: 0 | JT35: 0 | JU35: 0 | JV35: 0 | JW35: 0 | JX35: 0 | JY35: 0 | JZ35: 0 | KA35: 0 | KB35: 0 | KC35: 0 | KD35: 0 | KE35: 0 | KF35: 0 | KG35: 0 | KH35: 0 | KI35: 0 | KJ35: 0 | KK35: 0 | KL35: 0 | KM35: 0 | KN35: 0 | KO35: 0 | KP35: 0 | KQ35: 0 | KR35: 0 | KS35: 0 | KT35: 0 | KU35: 0 | KV35: 0 | KW35: 0 | KX35: 0 | KY35: 0 | KZ35: 0 | LA35: 0 | LB35: 0 | LC35: 0 | LD35: 0 | LE35: 0 | LF35: 0 | LG35: 0 | LH35: 0 | LI35: 0 | LJ35: 0 | LK35: 0 | LL35: 0 | LM35: 0 | LN35: 0 | LO35: 0 | LP35: 0 | LQ35: 0 | LR35: 0 | LS35: 0 | LT35: 0 | LU35: 0 | LV35: 0 | LW35: 0 | LX35: 0 | LY35: 0 | LZ35: =LZ13 -> 0 | MA35: 0 | MB35: 0 | MC35: 0 | MD35: 0 | ME35: 0 | MF35: 0 | MG35: 0 | MH35: 0 | MI35: 0 | MJ35: 0 | MK35: 0 | ML35: 0 | MM35: 0 | MN35: 0 | MO35: 0 | MP35: 0 | MQ35: 0 | MR35: 0 | MS35: 0 | MT35: 0 | MU35: 0 | MV35: 0 | MW35: 0 | MX35: 0 | MY35: 0 | MZ35: 0 | NA35: 0 | NB35: 0 | NC35: 0 | ND35: 0 | NE35: 0 | NF35: 0
B36: Focus | D36: =SUMIF(A$12:A$33, B36, D$12:D$33) -> 1 | F36: =SUM(F15:F19) -> 0 | G36: 0 | H36: 0 | I36: 35 | J36: 10 | K36: 15 | L36: 0 | M36: =SUM(M15:M19) -> 0 | N36: 0 | O36: 0 | P36: 0 | Q36: 0 | R36: =SUM(R15:R19) -> 0 | S36: 0 | T36: 0 | U36: 0 | V36: 0 | W36: 0 | X36: 0 | Y36: 0 | Z36: 0 | AA36: 0 | AB36: 0 | AC36: 0 | AD36: 0 | AE36: 0 | AF36: 0 | AG36: 0 | AH36: 0 | AI36: 0 | AJ36: 0 | AK36: 0 | AL36: 0 | AM36: 0 | AN36: 0 | AO36: 0 | AP36: 0 | AQ36: 0 | AR36: 0 | AS36: 0 | AT36: 0 | AU36: 0 | AV36: 0 | AW36: 0 | AX36: 0 | AY36: 0 | AZ36: 0 | BA36: 0 | BB36: 0 | BC36: 0 | BD36: 0 | BE36: 0 | BF36: 0 | BG36: 0 | BH36: 0 | BI36: 0 | BJ36: 0 | BK36: 0 | BL36: 0 | BM36: 0 | BN36: 0 | BO36: 0 | BP36: 0 | BQ36: 0 | BR36: 0 | BS36: 0 | BT36: 0 | BU36: 0 | BV36: 0 | BW36: 0 | BX36: 0 | BY36: 0 | BZ36: 0 | CA36: 0 | CB36: 0 | CC36: 0 | CD36: =SUM(CD15:CD19) -> 0 | CE36: 0 | CF36: 0 | CG36: 0 | CH36: 0 | CI36: 0 | CJ36: 0 | CK36: 0 | CL36: 0 | CM36: 0 | CN36: 0 | CO36: 0 | CP36: 0 | CQ36: 0 | CR36: 0 | CS36: 0 | CT36: 0 | CU36: 0 | CV36: 0 | CW36: 0 | CX36: 0 | CY36: 0 | CZ36: 0 | DA36: 0 | DB36: 0 | DC36: 0 | DD36: 0 | DE36: 0 | DF36: 0 | DG36: 0 | DH36: 0 | DI36: 0 | DJ36: 0 | DK36: 0 | DL36: 0 | DM36: 0 | DN36: 0 | DO36: 0 | DP36: 0 | DQ36: 0 | DR36: 0 | DS36: 0 | DT36: 0 | DU36: 0 | DV36: 0 | DW36: 0 | DX36: 0 | DY36: 0 | DZ36: 0 | EA36: 0 | EB36: 0 | EC36: 0 | ED36: 0 | EE36: 0 | EF36: 0 | EG36: 0 | EH36: 0 | EI36: 0 | EJ36: 0 | EK36: 0 | EL36: 0 | EM36: 0 | EN36: 0 | EO36: 0 | EP36: =SUM(EP15:EP19) -> 0 | EQ36: 0 | ER36: 0 | ES36: 0 | ET36: 0 | EU36: 0 | EV36: 0 | EW36: 0 | EX36: 0 | EY36: 0 | EZ36: 0 | FA36: 0 | FB36: 0 | FC36: 0 | FD36: 0 | FE36: 0 | FF36: 0 | FG36: 0 | FH36: 0 | FI36: 0 | FJ36: 0 | FK36: 0 | FL36: 0 | FM36: 0 | FN36: 0 | FO36: 0 | FP36: 0 | FQ36: 0 | FR36: 0 | FS36: 0 | FT36: 0 | FU36: 0 | FV36: 0 | FW36: 0 | FX36: 0 | FY36: 0 | FZ36: 0 | GA36: 0 | GB36: 0 | GC36: 0 | GD36: 0 | GE36: 0 | GF36: 0 | GG36: 0 | GH36: 0 | GI36: 0 | GJ36: 0 | GK36: 0 | GL36: 0 | GM36: 0 | GN36: 0 | GO36: 0 | GP36: 0 | GQ36: 0 | GR36: 0 | GS36: 0 | GT36: 0 | GU36: 0 | GV36: 0 | GW36: 0 | GX36: 0 | GY36: 0 | GZ36: 0 | HA36: 0 | HB36: =SUM(HB15:HB19) -> 0 | HC36: 0 | HD36: 0 | HE36: 0 | HF36: 0 | HG36: 0 | HH36: 0 | HI36: 0 | HJ36: 0 | HK36: 0 | HL36: 0 | HM36: 0 | HN36: 0 | HO36: 0 | HP36: 0 | HQ36: 0 | HR36: 0 | HS36: 0 | HT36: 0 | HU36: 0 | HV36: 0 | HW36: 0 | HX36: 0 | HY36: 0 | HZ36: 0 | IA36: 0 | IB36: 0 | IC36: 0 | ID36: 0 | IE36: 0 | IF36: 0 | IG36: 0 | IH36: 0 | II36: 0 | IJ36: 0 | IK36: 0 | IL36: 0 | IM36: 0 | IN36: 0 | IO36: 0 | IP36: 0 | IQ36: 0 | IR36: 0 | IS36: 0 | IT36: 0 | IU36: 0 | IV36: 0 | IW36: 0 | IX36: 0 | IY36: 0 | IZ36: 0 | JA36: 0 | JB36: 0 | JC36: 0 | JD36: 0 | JE36: 0 | JF36: 0 | JG36: 0 | JH36: 0 | JI36: 0 | JJ36: 0 | JK36: 0 | JL36: 0 | JM36: 0 | JN36: =SUM(JN15:JN19) -> 0 | JO36: 0 | JP36: 0 | JQ36: 0 | JR36: 0 | JS36: 0 | JT36: 0 | JU36: 0 | JV36: 0 | JW36: 0 | JX36: 0 | JY36: 0 | JZ36: 0 | KA36: 0 | KB36: 0 | KC36: 0 | KD36: 0 | KE36: 0 | KF36: 0 | KG36: 0 | KH36: 0 | KI36: 0 | KJ36: 0 | KK36: 0 | KL36: 0 | KM36: 0 | KN36: 0 | KO36: 0 | KP36: 0 | KQ36: 0 | KR36: 0 | KS36: 0 | KT36: 0 | KU36: 0 | KV36: 0 | KW36: 0 | KX36: 0 | KY36: 0 | KZ36: 0 | LA36: 0 | LB36: 0 | LC36: 0 | LD36: 0 | LE36: 0 | LF36: 0 | LG36: 0 | LH36: 0 | LI36: 0 | LJ36: 0 | LK36: 0 | LL36: 0 | LM36: 0 | LN36: 0 | LO36: 0 | LP36: 0 | LQ36: 0 | LR36: 0 | LS36: 0 | LT36: 0 | LU36: 0 | LV36: 0 | LW36: 0 | LX36: 0 | LY36: 0 | LZ36: =SUM(LZ15:LZ19) -> 0 | MA36: 0 | MB36: 0 | MC36: 0 | MD36: 0 | ME36: 0 | MF36: 0 | MG36: 0 | MH36: 0 | MI36: 0 | MJ36: 0 | MK36: 0 | ML36: 0 | MM36: 0 | MN36: 0 | MO36: 0 | MP36: 0 | MQ36: 0 | MR36: 0 | MS36: 0 | MT36: 0 | MU36: 0 | MV36: 0 | MW36: 0 | MX36: 0 | MY36: 0 | MZ36: 0 | NA36: 0 | NB36: 0 | NC36: 0 | ND36: 0 | NE36: 0 | NF36: 0
B37: Strength | D37: =SUMIF(A$12:A$33, B37, D$12:D$33) -> 2 | F37: =SUM(F20:F21) -> 5 | G37: =SUM(G20:G21) -> 10 | H37: 35 | I37: 10 | J37: 10 | K37: 10 | L37: 40 | M37: =SUM(M20:M21) -> 0 | N37: 0 | O37: 0 | P37: 0 | Q37: 0 | R37: =SUM(R20:R21) -> 0 | S37: 0 | T37: 0 | U37: 0 | V37: 0 | W37: 0 | X37: 0 | Y37: 0 | Z37: 0 | AA37: 0 | AB37: 0 | AC37: 0 | AD37: 0 | AE37: 0 | AF37: 0 | AG37: 0 | AH37: 0 | AI37: 0 | AJ37: 0 | AK37: 0 | AL37: 0 | AM37: 0 | AN37: 0 | AO37: 0 | AP37: 0 | AQ37: 0 | AR37: 0 | AS37: 0 | AT37: 0 | AU37: 0 | AV37: 0 | AW37: 0 | AX37: 0 | AY37: 0 | AZ37: 0 | BA37: 0 | BB37: 0 | BC37: 0 | BD37: 0 | BE37: 0 | BF37: 0 | BG37: 0 | BH37: 0 | BI37: 0 | BJ37: 0 | BK37: 0 | BL37: 0 | BM37: 0 | BN37: 0 | BO37: 0 | BP37: 0 | BQ37: 0 | BR37: 0 | BS37: 0 | BT37: 0 | BU37: 0 | BV37: 0 | BW37: 0 | BX37: 0 | BY37: 0 | BZ37: 0 | CA37: 0 | CB37: 0 | CC37: 0 | CD37: =SUM(CD20:CD21) -> 0 | CE37: 0 | CF37: 0 | CG37: 0 | CH37: 0 | CI37: 0 | CJ37: 0 | CK37: 0 | CL37: 0 | CM37: 0 | CN37: 0 | CO37: 0 | CP37: 0 | CQ37: 0 | CR37: 0 | CS37: 0 | CT37: 0 | CU37: 0 | CV37: 0 | CW37: 0 | CX37: 0 | CY37: 0 | CZ37: 0 | DA37: 0 | DB37: 0 | DC37: 0 | DD37: 0 | DE37: 0 | DF37: 0 | DG37: 0 | DH37: 0 | DI37: 0 | DJ37: 0 | DK37: 0 | DL37: 0 | DM37: 0 | DN37: 0 | DO37: 0 | DP37: 0 | DQ37: 0 | DR37: 0 | DS37: 0 | DT37: 0 | DU37: 0 | DV37: 0 | DW37: 0 | DX37: 0 | DY37: 0 | DZ37: 0 | EA37: 0 | EB37: 0 | EC37: 0 | ED37: 0 | EE37: 0 | EF37: 0 | EG37: 0 | EH37: 0 | EI37: 0 | EJ37: 0 | EK37: 0 | EL37: 0 | EM37: 0 | EN37: 0 | EO37: 0 | EP37: =SUM(EP20:EP21) -> 0 | EQ37: 0 | ER37: 0 | ES37: 0 | ET37: 0 | EU37: 0 | EV37: 0 | EW37: 0 | EX37: 0 | EY37: 0 | EZ37: 0 | FA37: 0 | FB37: 0 | FC37: 0 | FD37: 0 | FE37: 0 | FF37: 0 | FG37: 0 | FH37: 0 | FI37: 0 | FJ37: 0 | FK37: 0 | FL37: 0 | FM37: 0 | FN37: 0 | FO37: 0 | FP37: 0 | FQ37: 0 | FR37: 0 | FS37: 0 | FT37: 0 | FU37: 0 | FV37: 0 | FW37: 0 | FX37: 0 | FY37: 0 | FZ37: 0 | GA37: 0 | GB37: 0 | GC37: 0 | GD37: 0 | GE37: 0 | GF37: 0 | GG37: 0 | GH37: 0 | GI37: 0 | GJ37: 0 | GK37: 0 | GL37: 0 | GM37: 0 | GN37: 0 | GO37: 0 | GP37: 0 | GQ37: 0 | GR37: 0 | GS37: 0 | GT37: 0 | GU37: 0 | GV37: 0 | GW37: 0 | GX37: 0 | GY37: 0 | GZ37: 0 | HA37: 0 | HB37: =SUM(HB20:HB21) -> 0 | HC37: 0 | HD37: 0 | HE37: 0 | HF37: 0 | HG37: 0 | HH37: 0 | HI37: 0 | HJ37: 0 | HK37: 0 | HL37: 0 | HM37: 0 | HN37: 0 | HO37: 0 | HP37: 0 | HQ37: 0 | HR37: 0 | HS37: 0 | HT37: 0 | HU37: 0 | HV37: 0 | HW37: 0 | HX37: 0 | HY37: 0 | HZ37: 0 | IA37: 0 | IB37: 0 | IC37: 0 | ID37: 0 | IE37: 0 | IF37: 0 | IG37: 0 | IH37: 0 | II37: 0 | IJ37: 0 | IK37: 0 | IL37: 0 | IM37: 0 | IN37: 0 | IO37: 0 | IP37: 0 | IQ37: 0 | IR37: 0 | IS37: 0 | IT37: 0 | IU37: 0 | IV37: 0 | IW37: 0 | IX37: 0 | IY37: 0 | IZ37: 0 | JA37: 0 | JB37: 0 | JC37: 0 | JD37: 0 | JE37: 0 | JF37: 0 | JG37: 0 | JH37: 0 | JI37: 0 | JJ37: 0 | JK37: 0 | JL37: 0 | JM37: 0 | JN37: =SUM(JN20:JN21) -> 0 | JO37: 0 | JP37: 0 | JQ37: 0 | JR37: 0 | JS37: 0 | JT37: 0 | JU37: 0 | JV37: 0 | JW37: 0 | JX37: 0 | JY37: 0 | JZ37: 0 | KA37: 0 | KB37: 0 | KC37: 0 | KD37: 0 | KE37: 0 | KF37: 0 | KG37: 0 | KH37: 0 | KI37: 0 | KJ37: 0 | KK37: 0 | KL37: 0 | KM37: 0 | KN37: 0 | KO37: 0 | KP37: 0 | KQ37: 0 | KR37: 0 | KS37: 0 | KT37: 0 | KU37: 0 | KV37: 0 | KW37: 0 | KX37: 0 | KY37: 0 | KZ37: 0 | LA37: 0 | LB37: 0 | LC37: 0 | LD37: 0 | LE37: 0 | LF37: 0 | LG37: 0 | LH37: 0 | LI37: 0 | LJ37: 0 | LK37: 0 | LL37: 0 | LM37: 0 | LN37: 0 | LO37: 0 | LP37: 0 | LQ37: 0 | LR37: 0 | LS37: 0 | LT37: 0 | LU37: 0 | LV37: 0 | LW37: 0 | LX37: 0 | LY37: 0 | LZ37: =SUM(LZ20:LZ21) -> 0 | MA37: 0 | MB37: 0 | MC37: 0 | MD37: 0 | ME37: 0 | MF37: 0 | MG37: 0 | MH37: 0 | MI37: 0 | MJ37: 0 | MK37: 0 | ML37: 0 | MM37: 0 | MN37: 0 | MO37: 0 | MP37: 0 | MQ37: 0 | MR37: 0 | MS37: 0 | MT37: 0 | MU37: 0 | MV37: 0 | MW37: 0 | MX37: 0 | MY37: 0 | MZ37: 0 | NA37: 0 | NB37: 0 | NC37: 0 | ND37: 0 | NE37: 0 | NF37: 0
B38: Cardio | D38: =SUMIF(A$12:A$33, B38, D$12:D$33) -> 1.666666667 | F38: =SUM(F22:F24) -> 20 | G38: =SUM(G22:G24) -> 0 | H38: 60 | I38: 20 | J38: 0 | K38: 0 | L38: 0 | M38: =SUM(M22:M24) -> 0 | N38: 0 | O38: 0 | P38: 0 | Q38: 0 | R38: =SUM(R22:R24) -> 0 | S38: 0 | T38: 0 | U38: 0 | V38: 0 | W38: 0 | X38: 0 | Y38: 0 | Z38: 0 | AA38: 0 | AB38: 0 | AC38: 0 | AD38: 0 | AE38: 0 | AF38: 0 | AG38: 0 | AH38: 0 | AI38: 0 | AJ38: 0 | AK38: 0 | AL38: 0 | AM38: 0 | AN38: 0 | AO38: 0 | AP38: 0 | AQ38: 0 | AR38: 0 | AS38: 0 | AT38: 0 | AU38: 0 | AV38: 0 | AW38: 0 | AX38: 0 | AY38: 0 | AZ38: 0 | BA38: 0 | BB38: 0 | BC38: 0 | BD38: 0 | BE38: 0 | BF38: 0 | BG38: 0 | BH38: 0 | BI38: 0 | BJ38: 0 | BK38: 0 | BL38: 0 | BM38: 0 | BN38: 0 | BO38: 0 | BP38: 0 | BQ38: 0 | BR38: 0 | BS38: 0 | BT38: 0 | BU38: 0 | BV38: 0 | BW38: 0 | BX38: 0 | BY38: 0 | BZ38: 0 | CA38: 0 | CB38: 0 | CC38: 0 | CD38: =SUM(CD22:CD24) -> 0 | CE38: 0 | CF38: 0 | CG38: 0 | CH38: 0 | CI38: 0 | CJ38: 0 | CK38: 0 | CL38: 0 | CM38: 0 | CN38: 0 | CO38: 0 | CP38: 0 | CQ38: 0 | CR38: 0 | CS38: 0 | CT38: 0 | CU38: 0 | CV38: 0 | CW38: 0 | CX38: 0 | CY38: 0 | CZ38: 0 | DA38: 0 | DB38: 0 | DC38: 0 | DD38: 0 | DE38: 0 | DF38: 0 | DG38: 0 | DH38: 0 | DI38: 0 | DJ38: 0 | DK38: 0 | DL38: 0 | DM38: 0 | DN38: 0 | DO38: 0 | DP38: 0 | DQ38: 0 | DR38: 0 | DS38: 0 | DT38: 0 | DU38: 0 | DV38: 0 | DW38: 0 | DX38: 0 | DY38: 0 | DZ38: 0 | EA38: 0 | EB38: 0 | EC38: 0 | ED38: 0 | EE38: 0 | EF38: 0 | EG38: 0 | EH38: 0 | EI38: 0 | EJ38: 0 | EK38: 0 | EL38: 0 | EM38: 0 | EN38: 0 | EO38: 0 | EP38: =SUM(EP22:EP24) -> 0 | EQ38: 0 | ER38: 0 | ES38: 0 | ET38: 0 | EU38: 0 | EV38: 0 | EW38: 0 | EX38: 0 | EY38: 0 | EZ38: 0 | FA38: 0 | FB38: 0 | FC38: 0 | FD38: 0 | FE38: 0 | FF38: 0 | FG38: 0 | FH38: 0 | FI38: 0 | FJ38: 0 | FK38: 0 | FL38: 0 | FM38: 0 | FN38: 0 | FO38: 0 | FP38: 0 | FQ38: 0 | FR38: 0 | FS38: 0 | FT38: 0 | FU38: 0 | FV38: 0 | FW38: 0 | FX38: 0 | FY38: 0 | FZ38: 0 | GA38: 0 | GB38: 0 | GC38: 0 | GD38: 0 | GE38: 0 | GF38: 0 | GG38: 0 | GH38: 0 | GI38: 0 | GJ38: 0 | GK38: 0 | GL38: 0 | GM38: 0 | GN38: 0 | GO38: 0 | GP38: 0 | GQ38: 0 | GR38: 0 | GS38: 0 | GT38: 0 | GU38: 0 | GV38: 0 | GW38: 0 | GX38: 0 | GY38: 0 | GZ38: 0 | HA38: 0 | HB38: =SUM(HB22:HB24) -> 0 | HC38: 0 | HD38: 0 | HE38: 0 | HF38: 0 | HG38: 0 | HH38: 0 | HI38: 0 | HJ38: 0 | HK38: 0 | HL38: 0 | HM38: 0 | HN38: 0 | HO38: 0 | HP38: 0 | HQ38: 0 | HR38: 0 | HS38: 0 | HT38: 0 | HU38: 0 | HV38: 0 | HW38: 0 | HX38: 0 | HY38: 0 | HZ38: 0 | IA38: 0 | IB38: 0 | IC38: 0 | ID38: 0 | IE38: 0 | IF38: 0 | IG38: 0 | IH38: 0 | II38: 0 | IJ38: 0 | IK38: 0 | IL38: 0 | IM38: 0 | IN38: 0 | IO38: 0 | IP38: 0 | IQ38: 0 | IR38: 0 | IS38: 0 | IT38: 0 | IU38: 0 | IV38: 0 | IW38: 0 | IX38: 0 | IY38: 0 | IZ38: 0 | JA38: 0 | JB38: 0 | JC38: 0 | JD38: 0 | JE38: 0 | JF38: 0 | JG38: 0 | JH38: 0 | JI38: 0 | JJ38: 0 | JK38: 0 | JL38: 0 | JM38: 0 | JN38: =SUM(JN22:JN24) -> 0 | JO38: 0 | JP38: 0 | JQ38: 0 | JR38: 0 | JS38: 0 | JT38: 0 | JU38: 0 | JV38: 0 | JW38: 0 | JX38: 0 | JY38: 0 | JZ38: 0 | KA38: 0 | KB38: 0 | KC38: 0 | KD38: 0 | KE38: 0 | KF38: 0 | KG38: 0 | KH38: 0 | KI38: 0 | KJ38: 0 | KK38: 0 | KL38: 0 | KM38: 0 | KN38: 0 | KO38: 0 | KP38: 0 | KQ38: 0 | KR38: 0 | KS38: 0 | KT38: 0 | KU38: 0 | KV38: 0 | KW38: 0 | KX38: 0 | KY38: 0 | KZ38: 0 | LA38: 0 | LB38: 0 | LC38: 0 | LD38: 0 | LE38: 0 | LF38: 0 | LG38: 0 | LH38: 0 | LI38: 0 | LJ38: 0 | LK38: 0 | LL38: 0 | LM38: 0 | LN38: 0 | LO38: 0 | LP38: 0 | LQ38: 0 | LR38: 0 | LS38: 0 | LT38: 0 | LU38: 0 | LV38: 0 | LW38: 0 | LX38: 0 | LY38: 0 | LZ38: =SUM(LZ22:LZ24) -> 0 | MA38: 0 | MB38: 0 | MC38: 0 | MD38: 0 | ME38: 0 | MF38: 0 | MG38: 0 | MH38: 0 | MI38: 0 | MJ38: 0 | MK38: 0 | ML38: 0 | MM38: 0 | MN38: 0 | MO38: 0 | MP38: 0 | MQ38: 0 | MR38: 0 | MS38: 0 | MT38: 0 | MU38: 0 | MV38: 0 | MW38: 0 | MX38: 0 | MY38: 0 | MZ38: 0 | NA38: 0 | NB38: 0 | NC38: 0 | ND38: 0 | NE38: 0 | NF38: 0
B39: Arts | D39: =SUMIF(A$12:A$33, B39, D$12:D$33) -> 2.166666667 | F39: =SUM(F26:F29) -> 20 | G39: =SUM(G26:G29) -> 5 | H39: 10 | I39: 30 | J39: 30 | K39: 10 | L39: 25 | M39: =SUM(M26:M29) -> 0 | N39: 0 | O39: 0 | P39: 0 | Q39: 0 | R39: =SUM(R26:R29) -> 0 | S39: 0 | T39: 0 | U39: 0 | V39: 0 | W39: 0 | X39: 0 | Y39: 0 | Z39: 0 | AA39: 0 | AB39: 0 | AC39: 0 | AD39: 0 | AE39: 0 | AF39: 0 | AG39: 0 | AH39: 0 | AI39: 0 | AJ39: 0 | AK39: 0 | AL39: 0 | AM39: 0 | AN39: 0 | AO39: 0 | AP39: 0 | AQ39: 0 | AR39: 0 | AS39: 0 | AT39: 0 | AU39: 0 | AV39: 0 | AW39: 0 | AX39: 0 | AY39: 0 | AZ39: 0 | BA39: 0 | BB39: 0 | BC39: 0 | BD39: 0 | BE39: 0 | BF39: 0 | BG39: 0 | BH39: 0 | BI39: 0 | BJ39: 0 | BK39: 0 | BL39: 0 | BM39: 0 | BN39: 0 | BO39: 0 | BP39: 0 | BQ39: 0 | BR39: 0 | BS39: 0 | BT39: 0 | BU39: 0 | BV39: 0 | BW39: 0 | BX39: 0 | BY39: 0 | BZ39: 0 | CA39: 0 | CB39: 0 | CC39: 0 | CD39: =SUM(CD26:CD29) -> 0 | CE39: 0 | CF39: 0 | CG39: 0 | CH39: 0 | CI39: 0 | CJ39: 0 | CK39: 0 | CL39: 0 | CM39: 0 | CN39: 0 | CO39: 0 | CP39: 0 | CQ39: 0 | CR39: 0 | CS39: 0 | CT39: 0 | CU39: 0 | CV39: 0 | CW39: 0 | CX39: 0 | CY39: 0 | CZ39: 0 | DA39: 0 | DB39: 0 | DC39: 0 | DD39: 0 | DE39: 0 | DF39: 0 | DG39: 0 | DH39: 0 | DI39: 0 | DJ39: 0 | DK39: 0 | DL39: 0 | DM39: 0 | DN39: 0 | DO39: 0 | DP39: 0 | DQ39: 0 | DR39: 0 | DS39: 0 | DT39: 0 | DU39: 0 | DV39: 0 | DW39: 0 | DX39: 0 | DY39: 0 | DZ39: 0 | EA39: 0 | EB39: 0 | EC39: 0 | ED39: 0 | EE39: 0 | EF39: 0 | EG39: 0 | EH39: 0 | EI39: 0 | EJ39: 0 | EK39: 0 | EL39: 0 | EM39: 0 | EN39: 0 | EO39: 0 | EP39: =SUM(EP26:EP29) -> 0 | EQ39: 0 | ER39: 0 | ES39: 0 | ET39: 0 | EU39: 0 | EV39: 0 | EW39: 0 | EX39: 0 | EY39: 0 | EZ39: 0 | FA39: 0 | FB39: 0 | FC39: 0 | FD39: 0 | FE39: 0 | FF39: 0 | FG39: 0 | FH39: 0 | FI39: 0 | FJ39: 0 | FK39: 0 | FL39: 0 | FM39: 0 | FN39: 0 | FO39: 0 | FP39: 0 | FQ39: 0 | FR39: 0 | FS39: 0 | FT39: 0 | FU39: 0 | FV39: 0 | FW39: 0 | FX39: 0 | FY39: 0 | FZ39: 0 | GA39: 0 | GB39: 0 | GC39: 0 | GD39: 0 | GE39: 0 | GF39: 0 | GG39: 0 | GH39: 0 | GI39: 0 | GJ39: 0 | GK39: 0 | GL39: 0 | GM39: 0 | GN39: 0 | GO39: 0 | GP39: 0 | GQ39: 0 | GR39: 0 | GS39: 0 | GT39: 0 | GU39: 0 | GV39: 0 | GW39: 0 | GX39: 0 | GY39: 0 | GZ39: 0 | HA39: 0 | HB39: =SUM(HB26:HB29) -> 0 | HC39: 0 | HD39: 0 | HE39: 0 | HF39: 0 | HG39: 0 | HH39: 0 | HI39: 0 | HJ39: 0 | HK39: 0 | HL39: 0 | HM39: 0 | HN39: 0 | HO39: 0 | HP39: 0 | HQ39: 0 | HR39: 0 | HS39: 0 | HT39: 0 | HU39: 0 | HV39: 0 | HW39: 0 | HX39: 0 | HY39: 0 | HZ39: 0 | IA39: 0 | IB39: 0 | IC39: 0 | ID39: 0 | IE39: 0 | IF39: 0 | IG39: 0 | IH39: 0 | II39: 0 | IJ39: 0 | IK39: 0 | IL39: 0 | IM39: 0 | IN39: 0 | IO39: 0 | IP39: 0 | IQ39: 0 | IR39: 0 | IS39: 0 | IT39: 0 | IU39: 0 | IV39: 0 | IW39: 0 | IX39: 0 | IY39: 0 | IZ39: 0 | JA39: 0 | JB39: 0 | JC39: 0 | JD39: 0 | JE39: 0 | JF39: 0 | JG39: 0 | JH39: 0 | JI39: 0 | JJ39: 0 | JK39: 0 | JL39: 0 | JM39: 0 | JN39: =SUM(JN26:JN29) -> 0 | JO39: 0 | JP39: 0 | JQ39: 0 | JR39: 0 | JS39: 0 | JT39: 0 | JU39: 0 | JV39: 0 | JW39: 0 | JX39: 0 | JY39: 0 | JZ39: 0 | KA39: 0 | KB39: 0 | KC39: 0 | KD39: 0 | KE39: 0 | KF39: 0 | KG39: 0 | KH39: 0 | KI39: 0 | KJ39: 0 | KK39: 0 | KL39: 0 | KM39: 0 | KN39: 0 | KO39: 0 | KP39: 0 | KQ39: 0 | KR39: 0 | KS39: 0 | KT39: 0 | KU39: 0 | KV39: 0 | KW39: 0 | KX39: 0 | KY39: 0 | KZ39: 0 | LA39: 0 | LB39: 0 | LC39: 0 | LD39: 0 | LE39: 0 | LF39: 0 | LG39: 0 | LH39: 0 | LI39: 0 | LJ39: 0 | LK39: 0 | LL39: 0 | LM39: 0 | LN39: 0 | LO39: 0 | LP39: 0 | LQ39: 0 | LR39: 0 | LS39: 0 | LT39: 0 | LU39: 0 | LV39: 0 | LW39: 0 | LX39: 0 | LY39: 0 | LZ39: =SUM(LZ26:LZ29) -> 0 | MA39: 0 | MB39: 0 | MC39: 0 | MD39: 0 | ME39: 0 | MF39: 0 | MG39: 0 | MH39: 0 | MI39: 0 | MJ39: 0 | MK39: 0 | ML39: 0 | MM39: 0 | MN39: 0 | MO39: 0 | MP39: 0 | MQ39: 0 | MR39: 0 | MS39: 0 | MT39: 0 | MU39: 0 | MV39: 0 | MW39: 0 | MX39: 0 | MY39: 0 | MZ39: 0 | NA39: 0 | NB39: 0 | NC39: 0 | ND39: 0 | NE39: 0 | NF39: 0
B40: - | C40: - | D40: -
B41: Hours total | D41: =SUM(D36:D39) -> 6.833333333
B42: (excluding sleep)

Sheet 1.LifeMonths_example
A1: Year | B1: J | C1: F | D1: M | E1: A | F1: M | G1: J | H1: J | I1: A | J1: S | K1: O | L1: N | M1: D | N1: Era | P1: Year | Q1: J | R1: F | S1: M | T1: A | U1: M | V1: J | W1: J | X1: A | Y1: S | Z1: O | AA1: N | AB1: D | AC1: Era | AE1: Year | AF1: J | AG1: F | AH1: M | AI1: A | AJ1: M | AK1: J | AL1: J | AM1: A | AN1: S | AO1: O | AP1: N | AQ1: D | AR1: Era | AT1: Year | AU1: J | AV1: F | AW1: M | AX1: A | AY1: M | AZ1: J | BA1: J | BB1: A | BC1: S | BD1: O | BE1: N | BF1: D | BG1: Era | BJ1: Month | BK1: What I did
A2: 1970 | C2: X | D2: X | E2: X | F2: X | G2: X | H2: X | I2: X | J2: X | K2: X | L2: X | M2: X | N2: Pre-school | P2: 2000 | Q2: X | R2: X | S2: X | T2: X | U2: X | V2: X | W2: X | X2: X | Y2: X | Z2: X | AA2: X | AB2: X | AC2: Job 1 | AE2: 2030 | AR2: Job 2 | AT2: 2060 | BG2: Retirement | BJ2: 2021-11-01 | BK2: Month summary -- top 3-4 things done
A3: 1971 | B3: X | C3: X | D3: X | E3: X | F3: X | G3: X | H3: X | I3: X | J3: X | K3: X | L3: X | M3: X | N3: Pre-school | P3: 2001 | Q3: X | R3: X | S3: X | T3: X | U3: X | V3: X | W3: X | X3: X | Y3: X | Z3: X | AA3: X | AB3: X | AC3: Job 1 | AE3: 2031 | AR3: Job 2 | AT3: 2061 | BG3: Retirement | BJ3: 2021-12-01 | BK3: ditto
A4: 1972 | B4: X | C4: X | D4: X | E4: X | F4: X | G4: X | H4: X | I4: X | J4: X | K4: X | L4: X | M4: X | N4: Pre-school | P4: 2002 | Q4: X | R4: X | S4: X | T4: X | U4: X | V4: X | W4: X | X4: X | Y4: X | Z4: X | AA4: X | AB4: X | AC4: Job 1 | AE4: 2032 | AR4: Job 2 | AT4: 2062 | BG4: Retirement | BJ4: 2022-01-01 | BK4: ditto
A5: 1973 | B5: X | C5: X | D5: X | E5: X | F5: X | G5: X | H5: X | I5: X | J5: X | K5: X | L5: X | M5: X | N5: Pre-school | P5: 2003 | Q5: X | R5: X | S5: X | T5: X | U5: X | V5: X | W5: X | X5: X | Y5: X | Z5: X | AA5: X | AB5: X | AC5: Job 1 | AE5: 2033 | AR5: Job 2 | AT5: 2063 | BG5: Retirement | BJ5: 2022-02-01 | BK5: ditto
A6: 1974 | B6: X | C6: X | D6: X | E6: X | F6: X | G6: X | H6: X | I6: X | J6: X | K6: X | L6: X | M6: X | N6: Pre-school | P6: 2004 | Q6: X | R6: X | S6: X | T6: X | U6: X | V6: X | W6: X | X6: X | Y6: X | Z6: X | AA6: X | AB6: X | AC6: Job 1 | AE6: 2034 | AR6: Job 2 | AT6: 2064 | BG6: Retirement | BJ6: 2022-03-01 | BK6: ditto
A7: 1975 | B7: X | C7: X | D7: X | E7: X | F7: X | G7: X | H7: X | I7: X | J7: X | K7: X | L7: X | M7: X | N7: K-12 | P7: 2005 | Q7: X | R7: X | S7: X | T7: X | U7: X | V7: X | W7: X | X7: X | Y7: X | Z7: X | AA7: X | AB7: X | AC7: Job 1 | AE7: 2035 | AR7: Job 2 | AT7: 2065 | BG7: Retirement | BJ7: 2022-04-01 | BK7: etc.
A8: 1976 | B8: X | C8: X | D8: X | E8: X | F8: X | G8: X | H8: X | I8: X | J8: X | K8: X | L8: X | M8: X | N8: K-12 | P8: 2006 | Q8: X | R8: X | S8: X | T8: X | U8: X | V8: X | W8: X | X8: X | Y8: X | Z8: X | AA8: X | AB8: X | AC8: Job 1 | AE8: 2036 | AR8: Retirement | AT8: 2066 | BG8: Retirement | BJ8: 2022-05-01
A9: 1977 | B9: X | C9: X | D9: X | E9: X | F9: X | G9: X | H9: X | I9: X | J9: X | K9: X | L9: X | M9: X | N9: K-12 | P9: 2007 | Q9: X | R9: X | S9: X | T9: X | U9: X | V9: X | W9: X | X9: X | Y9: X | Z9: X | AA9: X | AB9: X | AC9: Job 1 | AE9: 2037 | AR9: Retirement | AT9: 2067 | BG9: Retirement | BJ9: 2022-06-01
A10: 1978 | B10: X | C10: X | D10: X | E10: X | F10: X | G10: X | H10: X | I10: X | J10: X | K10: X | L10: X | M10: X | N10: K-12 | P10: 2008 | Q10: X | R10: X | S10: X | T10: X | U10: X | V10: X | W10: X | X10: X | Y10: X | Z10: X | AA10: X | AB10: X | AC10: Job 1 | AE10: 2038 | AR10: Retirement | AT10: 2068 | BG10: Retirement | BJ10: 2022-07-01
A11: 1979 | B11: X | C11: X | D11: X | E11: X | F11: X | G11: X | H11: X | I11: X | J11: X | K11: X | L11: X | M11: X | N11: K-12 | P11: 2009 | Q11: X | R11: X | S11: X | T11: X | U11: X | V11: X | W11: X | X11: X | Y11: X | Z11: X | AA11: X | AB11: X | AC11: Job 2 | AE11: 2039 | AR11: Retirement | AT11: 2069 | BG11: Retirement | BJ11: 2022-08-01
A12: 1980 | B12: X | C12: X | D12: X | E12: X | F12: X | G12: X | H12: X | I12: X | J12: X | K12: X | L12: X | M12: X | N12: K-12 | P12: 2010 | Q12: X | R12: X | S12: X | T12: X | U12: X | V12: X | W12: X | X12: X | Y12: X | Z12: X | AA12: X | AB12: X | AC12: Job 2 | AE12: 2040 | AR12: Retirement | AT12: 2070 | BG12: Retirement | BJ12: 2022-09-01
A13: 1981 | B13: X | C13: X | D13: X | E13: X | F13: X | G13: X | H13: X | I13: X | J13: X | K13: X | L13: X | M13: X | N13: K-12 | P13: 2011 | Q13: X | R13: X | S13: X | T13: X | U13: X | V13: X | W13: X | X13: X | Y13: X | Z13: X | AA13: X | AB13: X | AC13: Job 2 | AE13: 2041 | AR13: Retirement | BJ13: 2022-10-01
A14: 1982 | B14: X | C14: X | D14: X | E14: X | F14: X | G14: X | H14: X | I14: X | J14: X | K14: X | L14: X | M14: X | N14: K-12 | P14: 2012 | Q14: X | R14: X | S14: X | T14: X | U14: X | V14: X | W14: X | X14: X | Y14: X | Z14: X | AA14: X | AB14: X | AC14: Job 2 | AE14: 2042 | AR14: Retirement | BJ14: 2022-11-01
A15: 1983 | B15: X | C15: X | D15: X | E15: X | F15: X | G15: X | H15: X | I15: X | J15: X | K15: X | L15: X | M15: X | N15: K-12 | P15: 2013 | Q15: X | R15: X | S15: X | T15: X | U15: X | V15: X | W15: X | X15: X | Y15: X | Z15: X | AA15: X | AB15: X | AC15: Job 2 | AE15: 2043 | AR15: Retirement | BJ15: 2022-12-01
A16: 1984 | B16: X | C16: X | D16: X | E16: X | F16: X | G16: X | H16: X | I16: X | J16: X | K16: X | L16: X | M16: X | N16: K-12 | P16: 2014 | Q16: X | R16: X | S16: X | T16: X | U16: X | V16: X | W16: X | X16: X | Y16: X | Z16: X | AA16: X | AB16: X | AC16: Job 2 | AE16: 2044 | AR16: Retirement | BJ16: 2023-01-01
A17: 1985 | B17: X | C17: X | D17: X | E17: X | F17: X | G17: X | H17: X | I17: X | J17: X | K17: X | L17: X | M17: X | N17: K-12 | P17: 2015 | Q17: X | R17: X | S17: X | T17: X | U17: X | V17: X | W17: X | X17: X | Y17: X | Z17: X | AA17: X | AB17: X | AC17: Job 2 | AE17: 2045 | AR17: Retirement | BJ17: 2023-02-01
A18: 1986 | B18: X | C18: X | D18: X | E18: X | F18: X | G18: X | H18: X | I18: X | J18: X | K18: X | L18: X | M18: X | N18: K-12 | P18: 2016 | Q18: X | R18: X | S18: X | T18: X | U18: X | V18: X | W18: X | X18: X | Y18: X | Z18: X | AA18: X | AB18: X | AC18: Job 2 | AE18: 2046 | AR18: Retirement | BJ18: 2023-03-01
A19: 1987 | B19: X | C19: X | D19: X | E19: X | F19: X | G19: X | H19: X | I19: X | J19: X | K19: X | L19: X | M19: X | N19: K-12 | P19: 2017 | Q19: X | R19: X | S19: X | T19: X | U19: X | V19: X | W19: X | X19: X | Y19: X | Z19: X | AA19: X | AB19: X | AC19: Job 2 | AE19: 2047 | AR19: Retirement | BJ19: 2023-04-01
A20: 1988 | B20: X | C20: X | D20: X | E20: X | F20: X | G20: X | H20: X | I20: X | J20: X | K20: X | L20: X | M20: X | N20: College | P20: 2018 | Q20: X | R20: X | S20: X | T20: X | U20: X | V20: X | W20: X | X20: X | Y20: X | Z20: X | AA20: X | AB20: X | AC20: Job 2 | AE20: 2048 | AR20: Retirement
A21: 1989 | B21: X | C21: X | D21: X | E21: X | F21: X | G21: X | H21: X | I21: X | J21: X | K21: X | L21: X | M21: X | N21: College | P21: 2019 | Q21: X | R21: X | S21: X | T21: X | U21: X | V21: X | W21: X | X21: X | Y21: X | Z21: X | AA21: X | AB21: X | AC21: Job 2 | AE21: 2049 | AR21: Retirement
A22: 1990 | B22: X | C22: X | D22: X | E22: X | F22: X | G22: X | H22: X | I22: X | J22: X | K22: X | L22: X | M22: X | N22: College | P22: 2020 | Q22: X | R22: X | S22: X | T22: X | U22: X | V22: X | W22: X | X22: X | Y22: X | Z22: X | AA22: X | AB22: X | AC22: Job 2 | AE22: 2050 | AR22: Retirement
A23: 1991 | B23: X | C23: X | D23: X | E23: X | F23: X | G23: X | H23: X | I23: X | J23: X | K23: X | L23: X | M23: X | N23: College | P23: 2021 | Q23: X | R23: X | S23: X | T23: X | U23: X | V23: X | W23: X | X23: X | Y23: X | Z23: X | AA23: X | AB23: X | AC23: Job 2 | AE23: 2051 | AR23: Retirement
A24: 1992 | B24: X | C24: X | D24: X | E24: X | F24: X | G24: X | H24: X | I24: X | J24: X | K24: X | L24: X | M24: X | N24: Grad School | P24: 2022 | Q24: X | R24: X | S24: X | T24: X | U24: X | V24: X | W24: X | X24: X | Y24: X | Z24: X | AA24: X | AB24: X | AC24: Job 2 | AE24: 2052 | AR24: Retirement
A25: 1993 | B25: X | C25: X | D25: X | E25: X | F25: X | G25: X | H25: X | I25: X | J25: X | K25: X | L25: X | M25: X | N25: Grad School | P25: 2023 | Q25: X | R25: X | S25: X | T25: X | U25: X | V25: X | W25: X | X25: X | Y25: X | Z25: X | AA25: X | AB25: X | AC25: Job 2 | AE25: 2053 | AR25: Retirement
A26: 1994 | B26: X | C26: X | D26: X | E26: X | F26: X | G26: X | H26: X | I26: X | J26: X | K26: X | L26: X | M26: X | N26: Grad School | P26: 2024 | AC26: Job 2 | AE26: 2054 | AR26: Retirement
A27: 1995 | B27: X | C27: X | D27: X | E27: X | F27: X | G27: X | H27: X | I27: X | J27: X | K27: X | L27: X | M27: X | N27: Grad School | P27: 2025 | AC27: Job 2 | AE27: 2055 | AR27: Retirement
A28: 1996 | B28: X | C28: X | D28: X | E28: X | F28: X | G28: X | H28: X | I28: X | J28: X | K28: X | L28: X | M28: X | N28: Grad School | P28: 2026 | AC28: Job 2 | AE28: 2056 | AO28: dad | AR28: Retirement
A29: 1997 | B29: X | C29: X | D29: X | E29: X | F29: X | G29: X | H29: X | I29: X | J29: X | K29: X | L29: X | M29: X | N29: Grad School | P29: 2027 | AC29: Job 2 | AE29: 2057 | AR29: Retirement
A30: 1998 | B30: X | C30: X | D30: X | E30: X | F30: X | G30: X | H30: X | I30: X | J30: X | K30: X | L30: X | M30: X | N30: Internship | P30: 2028 | AC30: Job 2 | AE30: 2058 | AR30: Retirement
A31: 1999 | B31: X | C31: X | D31: X | E31: X | F31: X | G31: X | H31: X | I31: X | J31: X | K31: X | L31: X | M31: X | N31: Internship | P31: 2029 | AC31: Job 2 | AE31: 2059 | AR31: Retirement

Sheet Friends2see
A1: Friends we should see more often
A3: Date | B3: Who
